Workbook

Sheet Display
F2: CQG Health Care Select Sector ETF | AB2: =RTD("cqg.rtd", ,"SystemInfo", "Linetime") -> 45855.64808
B5: Exchange Traded Funds Performance | S5: Top 15 Performing Companies
B6: Symbol | C6: Description | H6: Last | I6: NC | J6: %NC | K6: NC/ATR | L6: Open | M6: High | N6: Low | O6: Volume | Q6: Ratio
B7: XLV | C7: =RTD("cqg.rtd", ,"ContractData",B7, "LongDescription",, "T") -> Health Care Select Sector SPDR | H7: =RTD("cqg.rtd", ,"ContractData",B7, "LastTradeToday",, "T") -> 132.71 | I7: =RTD("cqg.rtd", ,"ContractData",B7, "NetLastTradeToday",, "T") -> -1.53 | J7: =IFERROR(RTD("cqg.rtd", ,"ContractData",B7, "PerCentNetLastTrade",, "T")/100,"") -> -0.01139664804 | K7: =IFERROR(I7/RTD("cqg.rtd",,"StudyData",B7, "ATR", "MaType=Sim,Period=10", "ATR","D","-1","ALL",,,"FALSE","T")/100,"") -> -0.008457711443 | L7: =RTD("cqg.rtd", ,"ContractData",B7, "OPen",, "T") -> 133.29 | M7: =RTD("cqg.rtd", ,"ContractData", B7, "HIgh",, "T") -> 133.68 | N7: =RTD("cqg.rtd", ,"ContractData",B7, "LOw",, "T") -> 132.28 | O7: =RTD("cqg.rtd", ,"ContractData",B7, "T_CVol",, "T") -> 15735321 | Q7: =IFERROR(O7/RTD("cqg.rtd",,"StudyData",B7, "MA", "InputChoice=Vol,MAType=Sim,Period=21", "MA","D","-1","all",,,,"T"),"") -> 1.122336458
B8: SPY | C8: =RTD("cqg.rtd", ,"ContractData",B8, "LongDescription",, "T") -> SPDR S&P 500 | H8: =RTD("cqg.rtd", ,"ContractData",B8, "LastTradeToday",, "T") -> 627.86 | I8: =RTD("cqg.rtd", ,"ContractData",B8, "NetLastTradeToday",, "T") -> 3.82 | J8: =IFERROR(RTD("cqg.rtd", ,"ContractData",B8, "PerCentNetLastTrade",, "T")/100,"") -> 0.006119637307 | K8: =IFERROR(I8/RTD("cqg.rtd",,"StudyData",B8, "ATR", "MaType=Sim,Period=10", "ATR","D","-1","ALL",,,"FALSE","T")/100,"") -> 0.007839113482 | L8: =RTD("cqg.rtd", ,"ContractData",B8, "OPen",, "T") -> 624.4 | M8: =RTD("cqg.rtd", ,"ContractData", B8, "HIgh",, "T") -> 628.4 | N8: =RTD("cqg.rtd", ,"ContractData",B8, "LOw",, "T") -> 624.18 | O8: =RTD("cqg.rtd", ,"ContractData",B8, "T_CVol",, "T") -> 68404915 | Q8: =IFERROR(O8/RTD("cqg.rtd",,"StudyData",B8, "MA", "InputChoice=Vol,MAType=Sim,Period=21", "MA","D","-1","all",,,,"T"),"") -> 0.9380348121
B9: XLF | C9: =RTD("cqg.rtd", ,"ContractData",B9, "LongDescription",, "T") -> Financial Select Sector SPDR | H9: =RTD("cqg.rtd", ,"ContractData",B9, "LastTradeToday",, "T") -> 52.51 | I9: =RTD("cqg.rtd", ,"ContractData",B9, "NetLastTradeToday",, "T") -> 0.5 | J9: =IFERROR(RTD("cqg.rtd", ,"ContractData",B9, "PerCentNetLastTrade",, "T")/100,"") -> 0.009613535858 | K9: =IFERROR(I9/RTD("cqg.rtd",,"StudyData",B9, "ATR", "MaType=Sim,Period=10", "ATR","D","-1","ALL",,,"FALSE","T")/100,"") -> 0.008223684211 | L9: =RTD("cqg.rtd", ,"ContractData",B9, "OPen",, "T") -> 51.87 | M9: =RTD("cqg.rtd", ,"ContractData", B9, "HIgh",, "T") -> 52.6 | N9: =RTD("cqg.rtd", ,"ContractData",B9, "LOw",, "T") -> 51.81 | O9: =RTD("cqg.rtd", ,"ContractData",B9, "T_CVol",, "T") -> 47602706 | Q9: =IFERROR(O9/RTD("cqg.rtd",,"StudyData",B9, "MA", "InputChoice=Vol,MAType=Sim,Period=21", "MA","D","-1","all",,,,"T"),"") -> 1.251285439
B10: S.XLY | C10: =RTD("cqg.rtd", ,"ContractData",B10, "LongDescription",, "T") -> Consumer Discretionary Select SectorSPDR | H10: =RTD("cqg.rtd", ,"ContractData",B10, "LastTradeToday",, "T") -> 220.22 | I10: =RTD("cqg.rtd", ,"ContractData",B10, "NetLastTradeToday",, "T") -> 0.75 | J10: =IFERROR(RTD("cqg.rtd", ,"ContractData",B10, "PerCentNetLastTrade",, "T")/100,"") -> 0.003417323552 | K10: =IFERROR(I10/RTD("cqg.rtd",,"StudyData",B10, "ATR", "MaType=Sim,Period=10", "ATR","D","-1","ALL",,,"FALSE","T")/100,"") -> 0.003022974607 | L10: =RTD("cqg.rtd", ,"ContractData",B10, "OPen",, "T") -> 219.62 | M10: =RTD("cqg.rtd", ,"ContractData", B10, "HIgh",, "T") -> 220.57 | N10: =RTD("cqg.rtd", ,"ContractData",B10, "LOw",, "T") -> 219.25 | O10: =RTD("cqg.rtd", ,"ContractData",B10, "T_CVol",, "T") -> 3871238 | Q10: =IFERROR(O10/RTD("cqg.rtd",,"StudyData",B10, "MA", "InputChoice=Vol,MAType=Sim,Period=21", "MA","D","-1","all",,,,"T"),"") -> 0.8826572823
B11: S.FXI | C11: =RTD("cqg.rtd", ,"ContractData",B11, "LongDescription",, "T") -> iShares China Large-Cap ETF | H11: =RTD("cqg.rtd", ,"ContractData",B11, "LastTradeToday",, "T") -> 37.59 | I11: =RTD("cqg.rtd", ,"ContractData",B11, "NetLastTradeToday",, "T") -> 0.12 | J11: =IFERROR(RTD("cqg.rtd", ,"ContractData",B11, "PerCentNetLastTrade",, "T")/100,"") -> 0.00320256205 | K11: =IFERROR(I11/RTD("cqg.rtd",,"StudyData",B11, "ATR", "MaType=Sim,Period=10", "ATR","D","-1","ALL",,,"FALSE","T")/100,"") -> 0.002678571429 | L11: =RTD("cqg.rtd", ,"ContractData",B11, "OPen",, "T") -> 37.2 | M11: =RTD("cqg.rtd", ,"ContractData", B11, "HIgh",, "T") -> 37.59 | N11: =RTD("cqg.rtd", ,"ContractData",B11, "LOw",, "T") -> 37.17 | O11: =RTD("cqg.rtd", ,"ContractData",B11, "T_CVol",, "T") -> 17969926 | Q11: =IFERROR(O11/RTD("cqg.rtd",,"StudyData",B11, "MA", "InputChoice=Vol,MAType=Sim,Period=21", "MA","D","-1","all",,,,"T"),"") -> 0.6741810553
B12: IWF | C12: =RTD("cqg.rtd", ,"ContractData",B12, "LongDescription",, "T") -> iShares Russell 1000 Growth ETF | H12: =RTD("cqg.rtd", ,"ContractData",B12, "LastTradeToday",, "T") -> 434.45 | I12: =RTD("cqg.rtd", ,"ContractData",B12, "NetLastTradeToday",, "T") -> 3.07 | J12: =IFERROR(RTD("cqg.rtd", ,"ContractData",B12, "PerCentNetLastTrade",, "T")/100,"") -> 0.007116695257 | K12: =IFERROR(I12/RTD("cqg.rtd",,"StudyData",B12, "ATR", "MaType=Sim,Period=10", "ATR","D","-1","ALL",,,"FALSE","T")/100,"") -> 0.007615976185 | L12: =RTD("cqg.rtd", ,"ContractData",B12, "OPen",, "T") -> 431.99 | M12: =RTD("cqg.rtd", ,"ContractData", B12, "HIgh",, "T") -> 434.9 | N12: =RTD("cqg.rtd", ,"ContractData",B12, "LOw",, "T") -> 431.51 | O12: =RTD("cqg.rtd", ,"ContractData",B12, "T_CVol",, "T") -> 1419095 | Q12: =IFERROR(O12/RTD("cqg.rtd",,"StudyData",B12, "MA", "InputChoice=Vol,MAType=Sim,Period=21", "MA","D","-1","all",,,,"T"),"") -> 1.332930858
B13: IWO | C13: =RTD("cqg.rtd", ,"ContractData",B13, "LongDescription",, "T") -> iShares Russell 2000 Growth ETF | H13: =RTD("cqg.rtd", ,"ContractData",B13, "LastTradeToday",, "T") -> 294.86 | I13: =RTD("cqg.rtd", ,"ContractData",B13, "NetLastTradeToday",, "T") -> 4.04 | J13: =IFERROR(RTD("cqg.rtd", ,"ContractData",B13, "PerCentNetLastTrade",, "T")/100,"") -> 0.01389175435 | K13: =IFERROR(I13/RTD("cqg.rtd",,"StudyData",B13, "ATR", "MaType=Sim,Period=10", "ATR","D","-1","ALL",,,"FALSE","T")/100,"") -> 0.008881072763 | L13: =RTD("cqg.rtd", ,"ContractData",B13, "OPen",, "T") -> 291.37 | M13: =RTD("cqg.rtd", ,"ContractData", B13, "HIgh",, "T") -> 295.19 | N13: =RTD("cqg.rtd", ,"ContractData",B13, "LOw",, "T") -> 290.56 | O13: =RTD("cqg.rtd", ,"ContractData",B13, "T_CVol",, "T") -> 835342 | Q13: =IFERROR(O13/RTD("cqg.rtd",,"StudyData",B13, "MA", "InputChoice=Vol,MAType=Sim,Period=21", "MA","D","-1","all",,,,"T"),"") -> 2.19290871
B14: EP | C14: =RTD("cqg.rtd", ,"ContractData",B14, "LongDescription",, "T") -> E-Mini S&P 500, Sep 25 | H14: =RTD("cqg.rtd", ,"ContractData",B14, "LastTradeToday",, "T") -> 6343.25 | I14: =RTD("cqg.rtd", ,"ContractData",B14, "NetLastTradeToday",, "T") -> 40 | J14: =IFERROR(RTD("cqg.rtd", ,"ContractData",B14, "PerCentNetLastTrade",, "T")/100,"") -> 0.006345932654 | K14: =IFERROR(I14/RTD("cqg.rtd",,"StudyData",B14, "ATR", "MaType=Sim,Period=10", "ATR","D","-1","ALL",,,"FALSE","T")/100,"") -> 0.007023705004 | L14: =RTD("cqg.rtd", ,"ContractData",B14, "OPen",, "T") -> 6299.25 | M14: =RTD("cqg.rtd", ,"ContractData", B14, "HIgh",, "T") -> 6345.5 | N14: =RTD("cqg.rtd", ,"ContractData",B14, "LOw",, "T") -> 6288.25 | O14: =RTD("cqg.rtd", ,"ContractData",B14, "T_CVol",, "T") -> 975642 | Q14: =IFERROR(O14/RTD("cqg.rtd",,"StudyData",B14, "MA", "InputChoice=Vol,MAType=Sim,Period=21", "MA","D","-1","all",,,,"T"),"") -> 0.6975279195
B15: XLE | C15: =RTD("cqg.rtd", ,"ContractData",B15, "LongDescription",, "T") -> Energy Select Sector SPDR | H15: =RTD("cqg.rtd", ,"ContractData",B15, "LastTradeToday",, "T") -> 86.63 | I15: =RTD("cqg.rtd", ,"ContractData",B15, "NetLastTradeToday",, "T") -> 0.53 | J15: =IFERROR(RTD("cqg.rtd", ,"ContractData",B15, "PerCentNetLastTrade",, "T")/100,"") -> 0.006153488912 | K15: =IFERROR(I15/RTD("cqg.rtd",,"StudyData",B15, "ATR", "MaType=Sim,Period=10", "ATR","D","-1","ALL",,,"FALSE","T")/100,"") -> 0.00352393617 | L15: =RTD("cqg.rtd", ,"ContractData",B15, "OPen",, "T") -> 85.69 | M15: =RTD("cqg.rtd", ,"ContractData", B15, "HIgh",, "T") -> 86.78 | N15: =RTD("cqg.rtd", ,"ContractData",B15, "LOw",, "T") -> 85.48 | O15: =RTD("cqg.rtd", ,"ContractData",B15, "T_CVol",, "T") -> 15773665 | Q15: =IFERROR(O15/RTD("cqg.rtd",,"StudyData",B15, "MA", "InputChoice=Vol,MAType=Sim,Period=21", "MA","D","-1","all",,,,"T"),"") -> 0.6947081863
B16: USO | C16: =RTD("cqg.rtd", ,"ContractData",B16, "LongDescription",, "T") -> United States Oil Fund | H16: =RTD("cqg.rtd", ,"ContractData",B16, "LastTradeToday",, "T") -> 76.18 | I16: =RTD("cqg.rtd", ,"ContractData",B16, "NetLastTradeToday",, "T") -> 0.98 | J16: =IFERROR(RTD("cqg.rtd", ,"ContractData",B16, "PerCentNetLastTrade",, "T")/100,"") -> 0.01303191489 | K16: =IFERROR(I16/RTD("cqg.rtd",,"StudyData",B16, "ATR", "MaType=Sim,Period=10", "ATR","D","-1","ALL",,,"FALSE","T")/100,"") -> 0.00601965602 | L16: =RTD("cqg.rtd", ,"ContractData",B16, "OPen",, "T") -> 75.19 | M16: =RTD("cqg.rtd", ,"ContractData", B16, "HIgh",, "T") -> 76.26 | N16: =RTD("cqg.rtd", ,"ContractData",B16, "LOw",, "T") -> 74.85 | O16: =RTD("cqg.rtd", ,"ContractData",B16, "T_CVol",, "T") -> 4330155 | Q16: =IFERROR(O16/RTD("cqg.rtd",,"StudyData",B16, "MA", "InputChoice=Vol,MAType=Sim,Period=21", "MA","D","-1","all",,,,"T"),"") -> 0.3198692477
C17: Top 15 Description | H17: Last | I17: NC | J17: %NC | K17: NC/ATR | L17: Open | M17: High | N17: Low | O17: Volume | Q17: Ratio
A18: =TRIM(XLV!O1) -> S.US.IQV | B18: News | C18: =IFERROR(RTD("cqg.rtd", ,"ContractData",A18, "LongDescription",, "T")&" ("&RIGHT(A18,LEN(A18)-5)&")","") -> IQVIA Holdings, Inc. (IQV) | H18: =IFERROR(RTD("cqg.rtd", ,"ContractData",A18, "LastTradeToday",, "T"),"") -> 163.25 | I18: =IFERROR(RTD("cqg.rtd", ,"ContractData",A18, "NetLastTradeToday",, "T"),"") -> 4.61 | J18: =IFERROR(RTD("cqg.rtd", ,"ContractData",A18, "PerCentNetLastTrade",, "T")/100,"") -> 0.0290595058 | K18: =IFERROR(I18/RTD("cqg.rtd",,"StudyData",A18, "ATR", "MaType=Sim,Period=10", "ATR","D","-1","ALL",,,"FALSE","T")/100,"") -> 0.01018559434 | L18: =IFERROR(RTD("cqg.rtd", ,"ContractData",A18, "OPen",, "T"),"") -> 158.32 | M18: =IFERROR(RTD("cqg.rtd", ,"ContractData", A18, "HIgh",, "T"),"") -> 163.83 | N18: =IFERROR(RTD("cqg.rtd", ,"ContractData",A18, "LOw",, "T"),"") -> 157.78 | O18: =IFERROR(RTD("cqg.rtd", ,"ContractData",A18, "T_CVol",, "T"),"") -> 2147755 | Q18: =IFERROR(O18/RTD("cqg.rtd",,"StudyData",A18, "MA", "InputChoice=Vol,MAType=Sim,Period=21", "MA","D","-1","all",,,,"T"),"") -> 1.096812849 | R18: =XLV!R1 -> https://finance.yahoo.com/quote/IQV
A19: =TRIM(XLV!O2) -> S.US.TECH | B19: News | C19: =IFERROR(RTD("cqg.rtd", ,"ContractData",A19, "LongDescription",, "T")&" ("&RIGHT(A19,LEN(A19)-5)&")","") -> Bio-Techne Corp (TECH) | H19: =IFERROR(RTD("cqg.rtd", ,"ContractData",A19, "LastTradeToday",, "T"),"") -> 53.29 | I19: =IFERROR(RTD("cqg.rtd", ,"ContractData",A19, "NetLastTradeToday",, "T"),"") -> 1.5 | J19: =IFERROR(RTD("cqg.rtd", ,"ContractData",A19, "PerCentNetLastTrade",, "T")/100,"") -> 0.02896312029 | K19: =IFERROR(I19/RTD("cqg.rtd",,"StudyData",A19, "ATR", "MaType=Sim,Period=10", "ATR","D","-1","ALL",,,"FALSE","T")/100,"") -> 0.00824628917 | L19: =IFERROR(RTD("cqg.rtd", ,"ContractData",A19, "OPen",, "T"),"") -> 51.92 | M19: =IFERROR(RTD("cqg.rtd", ,"ContractData", A19, "HIgh",, "T"),"") -> 53.33 | N19: =IFERROR(RTD("cqg.rtd", ,"ContractData",A19, "LOw",, "T"),"") -> 51.63 | O19: =IFERROR(RTD("cqg.rtd", ,"ContractData",A19, "T_CVol",, "T"),"") -> 1275208 | Q19: =IFERROR(O19/RTD("cqg.rtd",,"StudyData",A19, "MA", "InputChoice=Vol,MAType=Sim,Period=21", "MA","D","-1","all",,,,"T"),"") -> 0.6634720814 | R19: =XLV!R2 -> https://finance.yahoo.com/quote/TECH
A20: =TRIM(XLV!O3) -> S.US.A | B20: News | C20: =IFERROR(RTD("cqg.rtd", ,"ContractData",A20, "LongDescription",, "T")&" ("&RIGHT(A20,LEN(A20)-5)&")","") -> Agilent Technologies (A) | H20: =IFERROR(RTD("cqg.rtd", ,"ContractData",A20, "LastTradeToday",, "T"),"") -> 116.36 | I20: =IFERROR(RTD("cqg.rtd", ,"ContractData",A20, "NetLastTradeToday",, "T"),"") -> 2.93 | J20: =IFERROR(RTD("cqg.rtd", ,"ContractData",A20, "PerCentNetLastTrade",, "T")/100,"") -> 0.02583090893 | K20: =IFERROR(I20/RTD("cqg.rtd",,"StudyData",A20, "ATR", "MaType=Sim,Period=10", "ATR","D","-1","ALL",,,"FALSE","T")/100,"") -> 0.008163833937 | L20: =IFERROR(RTD("cqg.rtd", ,"ContractData",A20, "OPen",, "T"),"") -> 114.1 | M20: =IFERROR(RTD("cqg.rtd", ,"ContractData", A20, "HIgh",, "T"),"") -> 116.57 | N20: =IFERROR(RTD("cqg.rtd", ,"ContractData",A20, "LOw",, "T"),"") -> 113.25 | O20: =IFERROR(RTD("cqg.rtd", ,"ContractData",A20, "T_CVol",, "T"),"") -> 1550930 | Q20: =IFERROR(O20/RTD("cqg.rtd",,"StudyData",A20, "MA", "InputChoice=Vol,MAType=Sim,Period=21", "MA","D","-1","all",,,,"T"),"") -> 0.837136271 | R20: =XLV!R3 -> https://finance.yahoo.com/quote/A
A21: =TRIM(XLV!O4) -> S.US.WAT | B21: News | C21: =IFERROR(RTD("cqg.rtd", ,"ContractData",A21, "LongDescription",, "T")&" ("&RIGHT(A21,LEN(A21)-5)&")","") -> Waters Corporation (WAT) | H21: =IFERROR(RTD("cqg.rtd", ,"ContractData",A21, "LastTradeToday",, "T"),"") -> 296.92 | I21: =IFERROR(RTD("cqg.rtd", ,"ContractData",A21, "NetLastTradeToday",, "T"),"") -> 7.36 | J21: =IFERROR(RTD("cqg.rtd", ,"ContractData",A21, "PerCentNetLastTrade",, "T")/100,"") -> 0.0254178754 | K21: =IFERROR(I21/RTD("cqg.rtd",,"StudyData",A21, "ATR", "MaType=Sim,Period=10", "ATR","D","-1","ALL",,,"FALSE","T")/100,"") -> 0.005014307126 | L21: =IFERROR(RTD("cqg.rtd", ,"ContractData",A21, "OPen",, "T"),"") -> 291.34 | M21: =IFERROR(RTD("cqg.rtd", ,"ContractData", A21, "HIgh",, "T"),"") -> 297.62 | N21: =IFERROR(RTD("cqg.rtd", ,"ContractData",A21, "LOw",, "T"),"") -> 288.45 | O21: =IFERROR(RTD("cqg.rtd", ,"ContractData",A21, "T_CVol",, "T"),"") -> 1033570 | Q21: =IFERROR(O21/RTD("cqg.rtd",,"StudyData",A21, "MA", "InputChoice=Vol,MAType=Sim,Period=21", "MA","D","-1","all",,,,"T"),"") -> 1.364583523 | R21: =XLV!R4 -> https://finance.yahoo.com/quote/WAT
A22: =TRIM(XLV!O5) -> S.US.DVA | B22: News | C22: =IFERROR(RTD("cqg.rtd", ,"ContractData",A22, "LongDescription",, "T")&" ("&RIGHT(A22,LEN(A22)-5)&")","") -> DaVita Inc. (DVA) | H22: =IFERROR(RTD("cqg.rtd", ,"ContractData",A22, "LastTradeToday",, "T"),"") -> 143.38 | I22: =IFERROR(RTD("cqg.rtd", ,"ContractData",A22, "NetLastTradeToday",, "T"),"") -> 3.16 | J22: =IFERROR(RTD("cqg.rtd", ,"ContractData",A22, "PerCentNetLastTrade",, "T")/100,"") -> 0.02253601483 | K22: =IFERROR(I22/RTD("cqg.rtd",,"StudyData",A22, "ATR", "MaType=Sim,Period=10", "ATR","D","-1","ALL",,,"FALSE","T")/100,"") -> 0.009993674889 | L22: =IFERROR(RTD("cqg.rtd", ,"ContractData",A22, "OPen",, "T"),"") -> 139.96 | M22: =IFERROR(RTD("cqg.rtd", ,"ContractData", A22, "HIgh",, "T"),"") -> 143.55 | N22: =IFERROR(RTD("cqg.rtd", ,"ContractData",A22, "LOw",, "T"),"") -> 139.76 | O22: =IFERROR(RTD("cqg.rtd", ,"ContractData",A22, "T_CVol",, "T"),"") -> 578701 | Q22: =IFERROR(O22/RTD("cqg.rtd",,"StudyData",A22, "MA", "InputChoice=Vol,MAType=Sim,Period=21", "MA","D","-1","all",,,,"T"),"") -> 0.6868957095 | R22: =XLV!R5 -> https://finance.yahoo.com/quote/DVA
A23: =TRIM(XLV!O6) -> S.US.VTRS | B23: News | C23: =IFERROR(RTD("cqg.rtd", ,"ContractData",A23, "LongDescription",, "T")&" ("&RIGHT(A23,LEN(A23)-5)&")","") -> Viatris Inc. (VTRS) | H23: =IFERROR(RTD("cqg.rtd", ,"ContractData",A23, "LastTradeToday",, "T"),"") -> 9.27 | I23: =IFERROR(RTD("cqg.rtd", ,"ContractData",A23, "NetLastTradeToday",, "T"),"") -> 0.19 | J23: =IFERROR(RTD("cqg.rtd", ,"ContractData",A23, "PerCentNetLastTrade",, "T")/100,"") -> 0.02092511013 | K23: =IFERROR(I23/RTD("cqg.rtd",,"StudyData",A23, "ATR", "MaType=Sim,Period=10", "ATR","D","-1","ALL",,,"FALSE","T")/100,"") -> 0.009047619048 | L23: =IFERROR(RTD("cqg.rtd", ,"ContractData",A23, "OPen",, "T"),"") -> 9.08 | M23: =IFERROR(RTD("cqg.rtd", ,"ContractData", A23, "HIgh",, "T"),"") -> 9.28 | N23: =IFERROR(RTD("cqg.rtd", ,"ContractData",A23, "LOw",, "T"),"") -> 9.05 | O23: =IFERROR(RTD("cqg.rtd", ,"ContractData",A23, "T_CVol",, "T"),"") -> 10323711 | Q23: =IFERROR(O23/RTD("cqg.rtd",,"StudyData",A23, "MA", "InputChoice=Vol,MAType=Sim,Period=21", "MA","D","-1","all",,,,"T"),"") -> 1.009227838 | R23: =XLV!R6 -> https://finance.yahoo.com/quote/VTRS
A24: =TRIM(XLV!O7) -> S.US.TMO | B24: News | C24: =IFERROR(RTD("cqg.rtd", ,"ContractData",A24, "LongDescription",, "T")&" ("&RIGHT(A24,LEN(A24)-5)&")","") -> Thermo Electron Corp (TMO) | H24: =IFERROR(RTD("cqg.rtd", ,"ContractData",A24, "LastTradeToday",, "T"),"") -> 424.98 | I24: =IFERROR(RTD("cqg.rtd", ,"ContractData",A24, "NetLastTradeToday",, "T"),"") -> 8.67 | J24: =IFERROR(RTD("cqg.rtd", ,"ContractData",A24, "PerCentNetLastTrade",, "T")/100,"") -> 0.02082582691 | K24: =IFERROR(I24/RTD("cqg.rtd",,"StudyData",A24, "ATR", "MaType=Sim,Period=10", "ATR","D","-1","ALL",,,"FALSE","T")/100,"") -> 0.006991371664 | L24: =IFERROR(RTD("cqg.rtd", ,"ContractData",A24, "OPen",, "T"),"") -> 415 | M24: =IFERROR(RTD("cqg.rtd", ,"ContractData", A24, "HIgh",, "T"),"") -> 427 | N24: =IFERROR(RTD("cqg.rtd", ,"ContractData",A24, "LOw",, "T"),"") -> 413.29 | O24: =IFERROR(RTD("cqg.rtd", ,"ContractData",A24, "T_CVol",, "T"),"") -> 2489763 | Q24: =IFERROR(O24/RTD("cqg.rtd",,"StudyData",A24, "MA", "InputChoice=Vol,MAType=Sim,Period=21", "MA","D","-1","all",,,,"T"),"") -> 0.9053229642 | R24: =XLV!R7 -> https://finance.yahoo.com/quote/TMO
A25: =TRIM(XLV!O8) -> S.US.BMY | B25: News | C25: =IFERROR(RTD("cqg.rtd", ,"ContractData",A25, "LongDescription",, "T")&" ("&RIGHT(A25,LEN(A25)-5)&")","") -> Bristol-Myers Squibb Co (BMY) | H25: =IFERROR(RTD("cqg.rtd", ,"ContractData",A25, "LastTradeToday",, "T"),"") -> 48.06 | I25: =IFERROR(RTD("cqg.rtd", ,"ContractData",A25, "NetLastTradeToday",, "T"),"") -> 0.89 | J25: =IFERROR(RTD("cqg.rtd", ,"ContractData",A25, "PerCentNetLastTrade",, "T")/100,"") -> 0.01886792453 | K25: =IFERROR(I25/RTD("cqg.rtd",,"StudyData",A25, "ATR", "MaType=Sim,Period=10", "ATR","D","-1","ALL",,,"FALSE","T")/100,"") -> 0.007869142352 | L25: =IFERROR(RTD("cqg.rtd", ,"ContractData",A25, "OPen",, "T"),"") -> 46.81 | M25: =IFERROR(RTD("cqg.rtd", ,"ContractData", A25, "HIgh",, "T"),"") -> 48.35 | N25: =IFERROR(RTD("cqg.rtd", ,"ContractData",A25, "LOw",, "T"),"") -> 46.81 | O25: =IFERROR(RTD("cqg.rtd", ,"ContractData",A25, "T_CVol",, "T"),"") -> 16415347 | Q25: =IFERROR(O25/RTD("cqg.rtd",,"StudyData",A25, "MA", "InputChoice=Vol,MAType=Sim,Period=21", "MA","D","-1","all",,,,"T"),"") -> 1.10935054 | R25: =XLV!R8 -> https://finance.yahoo.com/quote/BMY
A26: =TRIM(XLV!O9) -> S.US.MTD | B26: News | C26: =IFERROR(RTD("cqg.rtd", ,"ContractData",A26, "LongDescription",, "T")&" ("&RIGHT(A26,LEN(A26)-5)&")","") -> Mettler-Toledo Internatl Inc (MTD) | H26: =IFERROR(RTD("cqg.rtd", ,"ContractData",A26, "LastTradeToday",, "T"),"") -> 1205.68 | I26: =IFERROR(RTD("cqg.rtd", ,"ContractData",A26, "NetLastTradeToday",, "T"),"") -> 21.48 | J26: =IFERROR(RTD("cqg.rtd", ,"ContractData",A26, "PerCentNetLastTrade",, "T")/100,"") -> 0.0181388279 | K26: =IFERROR(I26/RTD("cqg.rtd",,"StudyData",A26, "ATR", "MaType=Sim,Period=10", "ATR","D","-1","ALL",,,"FALSE","T")/100,"") -> 0.00719164323 | L26: =IFERROR(RTD("cqg.rtd", ,"ContractData",A26, "OPen",, "T"),"") -> 1186.91 | M26: =IFERROR(RTD("cqg.rtd", ,"ContractData", A26, "HIgh",, "T"),"") -> 1208.69 | N26: =IFERROR(RTD("cqg.rtd", ,"ContractData",A26, "LOw",, "T"),"") -> 1186.29 | O26: =IFERROR(RTD("cqg.rtd", ,"ContractData",A26, "T_CVol",, "T"),"") -> 126608 | Q26: =IFERROR(O26/RTD("cqg.rtd",,"StudyData",A26, "MA", "InputChoice=Vol,MAType=Sim,Period=21", "MA","D","-1","all",,,,"T"),"") -> 0.8898393832 | R26: =XLV!R9 -> https://finance.yahoo.com/quote/MTD
A27: =TRIM(XLV!O10) -> S.US.BDX | B27: News | C27: =IFERROR(RTD("cqg.rtd", ,"ContractData",A27, "LongDescription",, "T")&" ("&RIGHT(A27,LEN(A27)-5)&")","") -> Becton Dickinson & Co (BDX) | H27: =IFERROR(RTD("cqg.rtd", ,"ContractData",A27, "LastTradeToday",, "T"),"") -> 180.9 | I27: =IFERROR(RTD("cqg.rtd", ,"ContractData",A27, "NetLastTradeToday",, "T"),"") -> 2.63 | J27: =IFERROR(RTD("cqg.rtd", ,"ContractData",A27, "PerCentNetLastTrade",, "T")/100,"") -> 0.0147529029 | K27: =IFERROR(I27/RTD("cqg.rtd",,"StudyData",A27, "ATR", "MaType=Sim,Period=10", "ATR","D","-1","ALL",,,"FALSE","T")/100,"") -> 0.0070471597 | L27: =IFERROR(RTD("cqg.rtd", ,"ContractData",A27, "OPen",, "T"),"") -> 178.27 | M27: =IFERROR(RTD("cqg.rtd", ,"ContractData", A27, "HIgh",, "T"),"") -> 181.04 | N27: =IFERROR(RTD("cqg.rtd", ,"ContractData",A27, "LOw",, "T"),"") -> 177.1 | O27: =IFERROR(RTD("cqg.rtd", ,"ContractData",A27, "T_CVol",, "T"),"") -> 3888453 | Q27: =IFERROR(O27/RTD("cqg.rtd",,"StudyData",A27, "MA", "InputChoice=Vol,MAType=Sim,Period=21", "MA","D","-1","all",,,,"T"),"") -> 1.221387378 | R27: =XLV!R10 -> https://finance.yahoo.com/quote/BDX | S27: Bottom 15 Performing Companies
A28: =TRIM(XLV!O11) -> S.US.BSX | B28: News | C28: =IFERROR(RTD("cqg.rtd", ,"ContractData",A28, "LongDescription",, "T")&" ("&RIGHT(A28,LEN(A28)-5)&")","") -> Boston Scientific Corp (BSX) | H28: =IFERROR(RTD("cqg.rtd", ,"ContractData",A28, "LastTradeToday",, "T"),"") -> 104.65 | I28: =IFERROR(RTD("cqg.rtd", ,"ContractData",A28, "NetLastTradeToday",, "T"),"") -> 1.46 | J28: =IFERROR(RTD("cqg.rtd", ,"ContractData",A28, "PerCentNetLastTrade",, "T")/100,"") -> 0.01414865782 | K28: =IFERROR(I28/RTD("cqg.rtd",,"StudyData",A28, "ATR", "MaType=Sim,Period=10", "ATR","D","-1","ALL",,,"FALSE","T")/100,"") -> 0.007862143242 | L28: =IFERROR(RTD("cqg.rtd", ,"ContractData",A28, "OPen",, "T"),"") -> 102.98 | M28: =IFERROR(RTD("cqg.rtd", ,"ContractData", A28, "HIgh",, "T"),"") -> 104.74 | N28: =IFERROR(RTD("cqg.rtd", ,"ContractData",A28, "LOw",, "T"),"") -> 102.69 | O28: =IFERROR(RTD("cqg.rtd", ,"ContractData",A28, "T_CVol",, "T"),"") -> 9473184 | Q28: =IFERROR(O28/RTD("cqg.rtd",,"StudyData",A28, "MA", "InputChoice=Vol,MAType=Sim,Period=21", "MA","D","-1","all",,,,"T"),"") -> 1.268124721 | R28: =XLV!R11 -> https://finance.yahoo.com/quote/BSX
A29: =TRIM(XLV!O12) -> S.US.SOLV | B29: News | C29: =IFERROR(RTD("cqg.rtd", ,"ContractData",A29, "LongDescription",, "T")&" ("&RIGHT(A29,LEN(A29)-5)&")","") -> Solventum Corporation (SOLV) | H29: =IFERROR(RTD("cqg.rtd", ,"ContractData",A29, "LastTradeToday",, "T"),"") -> 73.86 | I29: =IFERROR(RTD("cqg.rtd", ,"ContractData",A29, "NetLastTradeToday",, "T"),"") -> 0.83 | J29: =IFERROR(RTD("cqg.rtd", ,"ContractData",A29, "PerCentNetLastTrade",, "T")/100,"") -> 0.01136519239 | K29: =IFERROR(I29/RTD("cqg.rtd",,"StudyData",A29, "ATR", "MaType=Sim,Period=10", "ATR","D","-1","ALL",,,"FALSE","T")/100,"") -> 0.004537998907 | L29: =IFERROR(RTD("cqg.rtd", ,"ContractData",A29, "OPen",, "T"),"") -> 73.16 | M29: =IFERROR(RTD("cqg.rtd", ,"ContractData", A29, "HIgh",, "T"),"") -> 74.05 | N29: =IFERROR(RTD("cqg.rtd", ,"ContractData",A29, "LOw",, "T"),"") -> 73.05 | O29: =IFERROR(RTD("cqg.rtd", ,"ContractData",A29, "T_CVol",, "T"),"") -> 424388 | Q29: =IFERROR(O29/RTD("cqg.rtd",,"StudyData",A29, "MA", "InputChoice=Vol,MAType=Sim,Period=21", "MA","D","-1","all",,,,"T"),"") -> 0.5398331427 | R29: =XLV!R12 -> https://finance.yahoo.com/quote/SOLV
A30: =TRIM(XLV!O13) -> S.US.CRL | B30: News | C30: =IFERROR(RTD("cqg.rtd", ,"ContractData",A30, "LongDescription",, "T")&" ("&RIGHT(A30,LEN(A30)-5)&")","") -> Charles River Labs Hldgs Inc (CRL) | H30: =IFERROR(RTD("cqg.rtd", ,"ContractData",A30, "LastTradeToday",, "T"),"") -> 156.7 | I30: =IFERROR(RTD("cqg.rtd", ,"ContractData",A30, "NetLastTradeToday",, "T"),"") -> 1.76 | J30: =IFERROR(RTD("cqg.rtd", ,"ContractData",A30, "PerCentNetLastTrade",, "T")/100,"") -> 0.01135923583 | K30: =IFERROR(I30/RTD("cqg.rtd",,"StudyData",A30, "ATR", "MaType=Sim,Period=10", "ATR","D","-1","ALL",,,"FALSE","T")/100,"") -> 0.003209336251 | L30: =IFERROR(RTD("cqg.rtd", ,"ContractData",A30, "OPen",, "T"),"") -> 154.93 | M30: =IFERROR(RTD("cqg.rtd", ,"ContractData", A30, "HIgh",, "T"),"") -> 156.95 | N30: =IFERROR(RTD("cqg.rtd", ,"ContractData",A30, "LOw",, "T"),"") -> 153.82 | O30: =IFERROR(RTD("cqg.rtd", ,"ContractData",A30, "T_CVol",, "T"),"") -> 898149 | Q30: =IFERROR(O30/RTD("cqg.rtd",,"StudyData",A30, "MA", "InputChoice=Vol,MAType=Sim,Period=21", "MA","D","-1","all",,,,"T"),"") -> 1.126864233 | R30: =XLV!R13 -> https://finance.yahoo.com/quote/CRL
A31: =TRIM(XLV!O14) -> S.US.ALGN | B31: News | C31: =IFERROR(RTD("cqg.rtd", ,"ContractData",A31, "LongDescription",, "T")&" ("&RIGHT(A31,LEN(A31)-5)&")","") -> Align Technology Inc (ALGN) | H31: =IFERROR(RTD("cqg.rtd", ,"ContractData",A31, "LastTradeToday",, "T"),"") -> 192.27 | I31: =IFERROR(RTD("cqg.rtd", ,"ContractData",A31, "NetLastTradeToday",, "T"),"") -> 2.03 | J31: =IFERROR(RTD("cqg.rtd", ,"ContractData",A31, "PerCentNetLastTrade",, "T")/100,"") -> 0.01067073171 | K31: =IFERROR(I31/RTD("cqg.rtd",,"StudyData",A31, "ATR", "MaType=Sim,Period=10", "ATR","D","-1","ALL",,,"FALSE","T")/100,"") -> 0.003400904674 | L31: =IFERROR(RTD("cqg.rtd", ,"ContractData",A31, "OPen",, "T"),"") -> 190.49 | M31: =IFERROR(RTD("cqg.rtd", ,"ContractData", A31, "HIgh",, "T"),"") -> 193.45 | N31: =IFERROR(RTD("cqg.rtd", ,"ContractData",A31, "LOw",, "T"),"") -> 189.27 | O31: =IFERROR(RTD("cqg.rtd", ,"ContractData",A31, "T_CVol",, "T"),"") -> 672575 | Q31: =IFERROR(O31/RTD("cqg.rtd",,"StudyData",A31, "MA", "InputChoice=Vol,MAType=Sim,Period=21", "MA","D","-1","all",,,,"T"),"") -> 0.714583022 | R31: =XLV!R14 -> https://finance.yahoo.com/quote/ALGN
A32: =TRIM(XLV!O15) -> S.US.GEHC | B32: News | C32: =IFERROR(RTD("cqg.rtd", ,"ContractData",A32, "LongDescription",, "T")&" ("&RIGHT(A32,LEN(A32)-5)&")","") -> GE HealthCare Technologies Inc. (GEHC) | H32: =IFERROR(RTD("cqg.rtd", ,"ContractData",A32, "LastTradeToday",, "T"),"") -> 76.24 | I32: =IFERROR(RTD("cqg.rtd", ,"ContractData",A32, "NetLastTradeToday",, "T"),"") -> 0.79 | J32: =IFERROR(RTD("cqg.rtd", ,"ContractData",A32, "PerCentNetLastTrade",, "T")/100,"") -> 0.01047051027 | K32: =IFERROR(I32/RTD("cqg.rtd",,"StudyData",A32, "ATR", "MaType=Sim,Period=10", "ATR","D","-1","ALL",,,"FALSE","T")/100,"") -> 0.005116580311 | L32: =IFERROR(RTD("cqg.rtd", ,"ContractData",A32, "OPen",, "T"),"") -> 75.29 | M32: =IFERROR(RTD("cqg.rtd", ,"ContractData", A32, "HIgh",, "T"),"") -> 76.58 | N32: =IFERROR(RTD("cqg.rtd", ,"ContractData",A32, "LOw",, "T"),"") -> 74.81 | O32: =IFERROR(RTD("cqg.rtd", ,"ContractData",A32, "T_CVol",, "T"),"") -> 3967626 | Q32: =IFERROR(O32/RTD("cqg.rtd",,"StudyData",A32, "MA", "InputChoice=Vol,MAType=Sim,Period=21", "MA","D","-1","all",,,,"T"),"") -> 0.9995180681 | R32: =XLV!R15 -> https://finance.yahoo.com/quote/GEHC
C33: Bottom 15 Description | H33: Last | I33: NC | J33: %NC | K33: NC/ATR | L33: Open | M33: High | N33: Low | O33: Volume | Q33: Ratio
A34: =TRIM(XLV!AC1) -> S.US.ELV | B34: News | C34: =IFERROR(RTD("cqg.rtd", ,"ContractData",A34, "LongDescription",, "T")&" ("&RIGHT(A34,LEN(A34)-5)&")","") -> Elevance Health, Inc. (ELV) | H34: =IFERROR(RTD("cqg.rtd", ,"ContractData",A34, "LastTradeToday",, "T"),"") -> 302.45 | I34: =IFERROR(RTD("cqg.rtd", ,"ContractData",A34, "NetLastTradeToday",, "T"),"") -> -42.1 | J34: =IFERROR(RTD("cqg.rtd", ,"ContractData",A34, "PerCentNetLastTrade",, "T")/100,"") -> -0.1221883616 | K34: =IFERROR(I34/RTD("cqg.rtd",,"StudyData",A34, "ATR", "MaType=Sim,Period=10", "ATR","D","-1","ALL",,,"FALSE","T")/100,"") -> -0.03610634648 | L34: =IFERROR(RTD("cqg.rtd", ,"ContractData",A34, "OPen",, "T"),"") -> 334 | M34: =IFERROR(RTD("cqg.rtd", ,"ContractData", A34, "HIgh",, "T"),"") -> 334 | N34: =IFERROR(RTD("cqg.rtd", ,"ContractData",A34, "LOw",, "T"),"") -> 296.39 | O34: =IFERROR(RTD("cqg.rtd", ,"ContractData",A34, "T_CVol",, "T"),"") -> 7388591 | Q34: =IFERROR(O34/RTD("cqg.rtd",,"StudyData",A34, "MA", "InputChoice=Vol,MAType=Sim,Period=21", "MA","D","-1","all",,,,"T"),"") -> 3.909071819 | R34: =XLV!AH1 -> https://finance.yahoo.com/quote/ELV
A35: =TRIM(XLV!AC2) -> S.US.ABT | B35: News | C35: =IFERROR(RTD("cqg.rtd", ,"ContractData",A35, "LongDescription",, "T")&" ("&RIGHT(A35,LEN(A35)-5)&")","") -> Abbott Laboratories (ABT) | H35: =IFERROR(RTD("cqg.rtd", ,"ContractData",A35, "LastTradeToday",, "T"),"") -> 120.51 | I35: =IFERROR(RTD("cqg.rtd", ,"ContractData",A35, "NetLastTradeToday",, "T"),"") -> -11.23 | J35: =IFERROR(RTD("cqg.rtd", ,"ContractData",A35, "PerCentNetLastTrade",, "T")/100,"") -> -0.08524366176 | K35: =IFERROR(I35/RTD("cqg.rtd",,"StudyData",A35, "ATR", "MaType=Sim,Period=10", "ATR","D","-1","ALL",,,"FALSE","T")/100,"") -> -0.05250116877 | L35: =IFERROR(RTD("cqg.rtd", ,"ContractData",A35, "OPen",, "T"),"") -> 126.55 | M35: =IFERROR(RTD("cqg.rtd", ,"ContractData", A35, "HIgh",, "T"),"") -> 126.86 | N35: =IFERROR(RTD("cqg.rtd", ,"ContractData",A35, "LOw",, "T"),"") -> 119.77 | O35: =IFERROR(RTD("cqg.rtd", ,"ContractData",A35, "T_CVol",, "T"),"") -> 27523090 | Q35: =IFERROR(O35/RTD("cqg.rtd",,"StudyData",A35, "MA", "InputChoice=Vol,MAType=Sim,Period=21", "MA","D","-1","all",,,,"T"),"") -> 4.383194874 | R35: =XLV!AH2 -> https://finance.yahoo.com/quote/ABT
A36: =TRIM(XLV!AC3) -> S.US.MOH | B36: News | C36: =IFERROR(RTD("cqg.rtd", ,"ContractData",A36, "LongDescription",, "T")&" ("&RIGHT(A36,LEN(A36)-5)&")","") -> Mohlina Heathcare Inc (MOH) | H36: =IFERROR(RTD("cqg.rtd", ,"ContractData",A36, "LastTradeToday",, "T"),"") -> 204.25 | I36: =IFERROR(RTD("cqg.rtd", ,"ContractData",A36, "NetLastTradeToday",, "T"),"") -> -11.81 | J36: =IFERROR(RTD("cqg.rtd", ,"ContractData",A36, "PerCentNetLastTrade",, "T")/100,"") -> -0.05466074239 | K36: =IFERROR(I36/RTD("cqg.rtd",,"StudyData",A36, "ATR", "MaType=Sim,Period=10", "ATR","D","-1","ALL",,,"FALSE","T")/100,"") -> -0.00847445465 | L36: =IFERROR(RTD("cqg.rtd", ,"ContractData",A36, "OPen",, "T"),"") -> 210 | M36: =IFERROR(RTD("cqg.rtd", ,"ContractData", A36, "HIgh",, "T"),"") -> 213.41 | N36: =IFERROR(RTD("cqg.rtd", ,"ContractData",A36, "LOw",, "T"),"") -> 200.63 | O36: =IFERROR(RTD("cqg.rtd", ,"ContractData",A36, "T_CVol",, "T"),"") -> 1773284 | Q36: =IFERROR(O36/RTD("cqg.rtd",,"StudyData",A36, "MA", "InputChoice=Vol,MAType=Sim,Period=21", "MA","D","-1","all",,,,"T"),"") -> 1.829273443 | R36: =XLV!AH3 -> https://finance.yahoo.com/quote/MOH
A37: =TRIM(XLV!AC4) -> S.US.CNC | B37: News | C37: =IFERROR(RTD("cqg.rtd", ,"ContractData",A37, "LongDescription",, "T")&" ("&RIGHT(A37,LEN(A37)-5)&")","") -> Cenetene Corporation (CNC) | H37: =IFERROR(RTD("cqg.rtd", ,"ContractData",A37, "LastTradeToday",, "T"),"") -> 29.14 | I37: =IFERROR(RTD("cqg.rtd", ,"ContractData",A37, "NetLastTradeToday",, "T"),"") -> -1.27 | J37: =IFERROR(RTD("cqg.rtd", ,"ContractData",A37, "PerCentNetLastTrade",, "T")/100,"") -> -0.0417625781 | K37: =IFERROR(I37/RTD("cqg.rtd",,"StudyData",A37, "ATR", "MaType=Sim,Period=10", "ATR","D","-1","ALL",,,"FALSE","T")/100,"") -> -0.003892123812 | L37: =IFERROR(RTD("cqg.rtd", ,"ContractData",A37, "OPen",, "T"),"") -> 30.08 | M37: =IFERROR(RTD("cqg.rtd", ,"ContractData", A37, "HIgh",, "T"),"") -> 30.25 | N37: =IFERROR(RTD("cqg.rtd", ,"ContractData",A37, "LOw",, "T"),"") -> 28.92 | O37: =IFERROR(RTD("cqg.rtd", ,"ContractData",A37, "T_CVol",, "T"),"") -> 19339508 | Q37: =IFERROR(O37/RTD("cqg.rtd",,"StudyData",A37, "MA", "InputChoice=Vol,MAType=Sim,Period=21", "MA","D","-1","all",,,,"T"),"") -> 1.239855297 | R37: =XLV!AH4 -> https://finance.yahoo.com/quote/CNC
A38: =TRIM(XLV!AC5) -> S.US.LLY | B38: News | C38: =IFERROR(RTD("cqg.rtd", ,"ContractData",A38, "LongDescription",, "T")&" ("&RIGHT(A38,LEN(A38)-5)&")","") -> Lilly (Eli) & Company (LLY) | H38: =IFERROR(RTD("cqg.rtd", ,"ContractData",A38, "LastTradeToday",, "T"),"") -> 761.5 | I38: =IFERROR(RTD("cqg.rtd", ,"ContractData",A38, "NetLastTradeToday",, "T"),"") -> -28.3 | J38: =IFERROR(RTD("cqg.rtd", ,"ContractData",A38, "PerCentNetLastTrade",, "T")/100,"") -> -0.03583185617 | K38: =IFERROR(I38/RTD("cqg.rtd",,"StudyData",A38, "ATR", "MaType=Sim,Period=10", "ATR","D","-1","ALL",,,"FALSE","T")/100,"") -> -0.01472731057 | L38: =IFERROR(RTD("cqg.rtd", ,"ContractData",A38, "OPen",, "T"),"") -> 786.79 | M38: =IFERROR(RTD("cqg.rtd", ,"ContractData", A38, "HIgh",, "T"),"") -> 790 | N38: =IFERROR(RTD("cqg.rtd", ,"ContractData",A38, "LOw",, "T"),"") -> 760.02 | O38: =IFERROR(RTD("cqg.rtd", ,"ContractData",A38, "T_CVol",, "T"),"") -> 4074177 | Q38: =IFERROR(O38/RTD("cqg.rtd",,"StudyData",A38, "MA", "InputChoice=Vol,MAType=Sim,Period=21", "MA","D","-1","all",,,,"T"),"") -> 1.317317222 | R38: =XLV!AH5 -> https://finance.yahoo.com/quote/LLY
A39: =TRIM(XLV!AC6) -> S.US.CI | B39: News | C39: =IFERROR(RTD("cqg.rtd", ,"ContractData",A39, "LongDescription",, "T")&" ("&RIGHT(A39,LEN(A39)-5)&")","") -> The Cigna Group (CI) | H39: =IFERROR(RTD("cqg.rtd", ,"ContractData",A39, "LastTradeToday",, "T"),"") -> 298.28 | I39: =IFERROR(RTD("cqg.rtd", ,"ContractData",A39, "NetLastTradeToday",, "T"),"") -> -7.54 | J39: =IFERROR(RTD("cqg.rtd", ,"ContractData",A39, "PerCentNetLastTrade",, "T")/100,"") -> -0.02465502583 | K39: =IFERROR(I39/RTD("cqg.rtd",,"StudyData",A39, "ATR", "MaType=Sim,Period=10", "ATR","D","-1","ALL",,,"FALSE","T")/100,"") -> -0.01139144886 | L39: =IFERROR(RTD("cqg.rtd", ,"ContractData",A39, "OPen",, "T"),"") -> 303.21 | M39: =IFERROR(RTD("cqg.rtd", ,"ContractData", A39, "HIgh",, "T"),"") -> 304.24 | N39: =IFERROR(RTD("cqg.rtd", ,"ContractData",A39, "LOw",, "T"),"") -> 295.93 | O39: =IFERROR(RTD("cqg.rtd", ,"ContractData",A39, "T_CVol",, "T"),"") -> 1689060 | Q39: =IFERROR(O39/RTD("cqg.rtd",,"StudyData",A39, "MA", "InputChoice=Vol,MAType=Sim,Period=21", "MA","D","-1","all",,,,"T"),"") -> 0.9468255258 | R39: =XLV!AH6 -> https://finance.yahoo.com/quote/CI
A40: =TRIM(XLV!AC7) -> S.US.BAX | B40: News | C40: =IFERROR(RTD("cqg.rtd", ,"ContractData",A40, "LongDescription",, "T")&" ("&RIGHT(A40,LEN(A40)-5)&")","") -> Baxter International Inc (BAX) | H40: =IFERROR(RTD("cqg.rtd", ,"ContractData",A40, "LastTradeToday",, "T"),"") -> 27.89 | I40: =IFERROR(RTD("cqg.rtd", ,"ContractData",A40, "NetLastTradeToday",, "T"),"") -> -0.48 | J40: =IFERROR(RTD("cqg.rtd", ,"ContractData",A40, "PerCentNetLastTrade",, "T")/100,"") -> -0.01691928093 | K40: =IFERROR(I40/RTD("cqg.rtd",,"StudyData",A40, "ATR", "MaType=Sim,Period=10", "ATR","D","-1","ALL",,,"FALSE","T")/100,"") -> -0.005068637804 | L40: =IFERROR(RTD("cqg.rtd", ,"ContractData",A40, "OPen",, "T"),"") -> 28.35 | M40: =IFERROR(RTD("cqg.rtd", ,"ContractData", A40, "HIgh",, "T"),"") -> 28.41 | N40: =IFERROR(RTD("cqg.rtd", ,"ContractData",A40, "LOw",, "T"),"") -> 27.63 | O40: =IFERROR(RTD("cqg.rtd", ,"ContractData",A40, "T_CVol",, "T"),"") -> 5295268 | Q40: =IFERROR(O40/RTD("cqg.rtd",,"StudyData",A40, "MA", "InputChoice=Vol,MAType=Sim,Period=21", "MA","D","-1","all",,,,"T"),"") -> 1.228493957 | R40: =XLV!AH7 -> https://finance.yahoo.com/quote/BAX
A41: =TRIM(XLV!AC8) -> S.US.PODD | B41: News | C41: =IFERROR(RTD("cqg.rtd", ,"ContractData",A41, "LongDescription",, "T")&" ("&RIGHT(A41,LEN(A41)-5)&")","") -> Insulet Corporation (PODD) | H41: =IFERROR(RTD("cqg.rtd", ,"ContractData",A41, "LastTradeToday",, "T"),"") -> 283.45 | I41: =IFERROR(RTD("cqg.rtd", ,"ContractData",A41, "NetLastTradeToday",, "T"),"") -> -4.82 | J41: =IFERROR(RTD("cqg.rtd", ,"ContractData",A41, "PerCentNetLastTrade",, "T")/100,"") -> -0.0167204357 | K41: =IFERROR(I41/RTD("cqg.rtd",,"StudyData",A41, "ATR", "MaType=Sim,Period=10", "ATR","D","-1","ALL",,,"FALSE","T")/100,"") -> -0.008270418668 | L41: =IFERROR(RTD("cqg.rtd", ,"ContractData",A41, "OPen",, "T"),"") -> 287.16 | M41: =IFERROR(RTD("cqg.rtd", ,"ContractData", A41, "HIgh",, "T"),"") -> 288.49 | N41: =IFERROR(RTD("cqg.rtd", ,"ContractData",A41, "LOw",, "T"),"") -> 282.8 | O41: =IFERROR(RTD("cqg.rtd", ,"ContractData",A41, "T_CVol",, "T"),"") -> 581945 | Q41: =IFERROR(O41/RTD("cqg.rtd",,"StudyData",A41, "MA", "InputChoice=Vol,MAType=Sim,Period=21", "MA","D","-1","all",,,,"T"),"") -> 0.7831432196 | R41: =XLV!AH8 -> https://finance.yahoo.com/quote/PODD
A42: =TRIM(XLV!AC9) -> S.US.UNH | B42: News | C42: =IFERROR(RTD("cqg.rtd", ,"ContractData",A42, "LongDescription",, "T")&" ("&RIGHT(A42,LEN(A42)-5)&")","") -> United Health Group Inc (UNH) | H42: =IFERROR(RTD("cqg.rtd", ,"ContractData",A42, "LastTradeToday",, "T"),"") -> 288.07 | I42: =IFERROR(RTD("cqg.rtd", ,"ContractData",A42, "NetLastTradeToday",, "T"),"") -> -4.42 | J42: =IFERROR(RTD("cqg.rtd", ,"ContractData",A42, "PerCentNetLastTrade",, "T")/100,"") -> -0.01511162775 | K42: =IFERROR(I42/RTD("cqg.rtd",,"StudyData",A42, "ATR", "MaType=Sim,Period=10", "ATR","D","-1","ALL",,,"FALSE","T")/100,"") -> -0.005540930174 | L42: =IFERROR(RTD("cqg.rtd", ,"ContractData",A42, "OPen",, "T"),"") -> 292.33 | M42: =IFERROR(RTD("cqg.rtd", ,"ContractData", A42, "HIgh",, "T"),"") -> 293 | N42: =IFERROR(RTD("cqg.rtd", ,"ContractData",A42, "LOw",, "T"),"") -> 283.83 | O42: =IFERROR(RTD("cqg.rtd", ,"ContractData",A42, "T_CVol",, "T"),"") -> 14694424 | Q42: =IFERROR(O42/RTD("cqg.rtd",,"StudyData",A42, "MA", "InputChoice=Vol,MAType=Sim,Period=21", "MA","D","-1","all",,,,"T"),"") -> 1.24856189 | R42: =XLV!AH9 -> https://finance.yahoo.com/quote/UNH
A43: =TRIM(XLV!AC10) -> S.US.VRTX | B43: News | C43: =IFERROR(RTD("cqg.rtd", ,"ContractData",A43, "LongDescription",, "T")&" ("&RIGHT(A43,LEN(A43)-5)&")","") -> Vertex Pharmaceuticals Incorporated (VRTX) | H43: =IFERROR(RTD("cqg.rtd", ,"ContractData",A43, "LastTradeToday",, "T"),"") -> 463.27 | I43: =IFERROR(RTD("cqg.rtd", ,"ContractData",A43, "NetLastTradeToday",, "T"),"") -> -6.28 | J43: =IFERROR(RTD("cqg.rtd", ,"ContractData",A43, "PerCentNetLastTrade",, "T")/100,"") -> -0.01337450751 | K43: =IFERROR(I43/RTD("cqg.rtd",,"StudyData",A43, "ATR", "MaType=Sim,Period=10", "ATR","D","-1","ALL",,,"FALSE","T")/100,"") -> -0.006728090851 | L43: =IFERROR(RTD("cqg.rtd", ,"ContractData",A43, "OPen",, "T"),"") -> 466.32 | M43: =IFERROR(RTD("cqg.rtd", ,"ContractData", A43, "HIgh",, "T"),"") -> 472.22 | N43: =IFERROR(RTD("cqg.rtd", ,"ContractData",A43, "LOw",, "T"),"") -> 461.86 | O43: =IFERROR(RTD("cqg.rtd", ,"ContractData",A43, "T_CVol",, "T"),"") -> 1251326 | Q43: =IFERROR(O43/RTD("cqg.rtd",,"StudyData",A43, "MA", "InputChoice=Vol,MAType=Sim,Period=21", "MA","D","-1","all",,,,"T"),"") -> 1.014853098 | R43: =XLV!AH10 -> https://finance.yahoo.com/quote/VRTX
A44: =TRIM(XLV!AC11) -> S.US.STE | B44: News | C44: =IFERROR(RTD("cqg.rtd", ,"ContractData",A44, "LongDescription",, "T")&" ("&RIGHT(A44,LEN(A44)-5)&")","") -> STERIS plc (STE) | H44: =IFERROR(RTD("cqg.rtd", ,"ContractData",A44, "LastTradeToday",, "T"),"") -> 224.59 | I44: =IFERROR(RTD("cqg.rtd", ,"ContractData",A44, "NetLastTradeToday",, "T"),"") -> -3.03 | J44: =IFERROR(RTD("cqg.rtd", ,"ContractData",A44, "PerCentNetLastTrade",, "T")/100,"") -> -0.01331165978 | K44: =IFERROR(I44/RTD("cqg.rtd",,"StudyData",A44, "ATR", "MaType=Sim,Period=10", "ATR","D","-1","ALL",,,"FALSE","T")/100,"") -> -0.007317073171 | L44: =IFERROR(RTD("cqg.rtd", ,"ContractData",A44, "OPen",, "T"),"") -> 226.42 | M44: =IFERROR(RTD("cqg.rtd", ,"ContractData", A44, "HIgh",, "T"),"") -> 227.57 | N44: =IFERROR(RTD("cqg.rtd", ,"ContractData",A44, "LOw",, "T"),"") -> 224.15 | O44: =IFERROR(RTD("cqg.rtd", ,"ContractData",A44, "T_CVol",, "T"),"") -> 1076123 | Q44: =IFERROR(O44/RTD("cqg.rtd",,"StudyData",A44, "MA", "InputChoice=Vol,MAType=Sim,Period=21", "MA","D","-1","all",,,,"T"),"") -> 1.895432736 | R44: =XLV!AH11 -> https://finance.yahoo.com/quote/STE
A45: =TRIM(XLV!AC12) -> S.US.HUM | B45: News | C45: =IFERROR(RTD("cqg.rtd", ,"ContractData",A45, "LongDescription",, "T")&" ("&RIGHT(A45,LEN(A45)-5)&")","") -> Humana Inc (HUM) | H45: =IFERROR(RTD("cqg.rtd", ,"ContractData",A45, "LastTradeToday",, "T"),"") -> 223.55 | I45: =IFERROR(RTD("cqg.rtd", ,"ContractData",A45, "NetLastTradeToday",, "T"),"") -> -3.01 | J45: =IFERROR(RTD("cqg.rtd", ,"ContractData",A45, "PerCentNetLastTrade",, "T")/100,"") -> -0.01328566384 | K45: =IFERROR(I45/RTD("cqg.rtd",,"StudyData",A45, "ATR", "MaType=Sim,Period=10", "ATR","D","-1","ALL",,,"FALSE","T")/100,"") -> -0.004871338404 | L45: =IFERROR(RTD("cqg.rtd", ,"ContractData",A45, "OPen",, "T"),"") -> 225.24 | M45: =IFERROR(RTD("cqg.rtd", ,"ContractData", A45, "HIgh",, "T"),"") -> 227.72 | N45: =IFERROR(RTD("cqg.rtd", ,"ContractData",A45, "LOw",, "T"),"") -> 216.65 | O45: =IFERROR(RTD("cqg.rtd", ,"ContractData",A45, "T_CVol",, "T"),"") -> 1774797 | Q45: =IFERROR(O45/RTD("cqg.rtd",,"StudyData",A45, "MA", "InputChoice=Vol,MAType=Sim,Period=21", "MA","D","-1","all",,,,"T"),"") -> 1.169848065 | R45: =XLV!AH12 -> https://finance.yahoo.com/quote/HUM
A46: =TRIM(XLV!AC13) -> S.US.WST | B46: News | C46: =IFERROR(RTD("cqg.rtd", ,"ContractData",A46, "LongDescription",, "T")&" ("&RIGHT(A46,LEN(A46)-5)&")","") -> West Pharmaceuticals Svcs Inc (WST) | H46: =IFERROR(RTD("cqg.rtd", ,"ContractData",A46, "LastTradeToday",, "T"),"") -> 221.59 | I46: =IFERROR(RTD("cqg.rtd", ,"ContractData",A46, "NetLastTradeToday",, "T"),"") -> -2.79 | J46: =IFERROR(RTD("cqg.rtd", ,"ContractData",A46, "PerCentNetLastTrade",, "T")/100,"") -> -0.0124342633 | K46: =IFERROR(I46/RTD("cqg.rtd",,"StudyData",A46, "ATR", "MaType=Sim,Period=10", "ATR","D","-1","ALL",,,"FALSE","T")/100,"") -> -0.005254237288 | L46: =IFERROR(RTD("cqg.rtd", ,"ContractData",A46, "OPen",, "T"),"") -> 224.54 | M46: =IFERROR(RTD("cqg.rtd", ,"ContractData", A46, "HIgh",, "T"),"") -> 226.02 | N46: =IFERROR(RTD("cqg.rtd", ,"ContractData",A46, "LOw",, "T"),"") -> 221.4 | O46: =IFERROR(RTD("cqg.rtd", ,"ContractData",A46, "T_CVol",, "T"),"") -> 532392 | Q46: =IFERROR(O46/RTD("cqg.rtd",,"StudyData",A46, "MA", "InputChoice=Vol,MAType=Sim,Period=21", "MA","D","-1","all",,,,"T"),"") -> 0.8652097703 | R46: =XLV!AH13 -> https://finance.yahoo.com/quote/WST
A47: =TRIM(XLV!AC14) -> S.US.COR | B47: News | C47: =IFERROR(RTD("cqg.rtd", ,"ContractData",A47, "LongDescription",, "T")&" ("&RIGHT(A47,LEN(A47)-5)&")","") -> Cencora Inc. (COR) | H47: =IFERROR(RTD("cqg.rtd", ,"ContractData",A47, "LastTradeToday",, "T"),"") -> 294.38 | I47: =IFERROR(RTD("cqg.rtd", ,"ContractData",A47, "NetLastTradeToday",, "T"),"") -> -3.45 | J47: =IFERROR(RTD("cqg.rtd", ,"ContractData",A47, "PerCentNetLastTrade",, "T")/100,"") -> -0.01158378941 | K47: =IFERROR(I47/RTD("cqg.rtd",,"StudyData",A47, "ATR", "MaType=Sim,Period=10", "ATR","D","-1","ALL",,,"FALSE","T")/100,"") -> -0.006351251841 | L47: =IFERROR(RTD("cqg.rtd", ,"ContractData",A47, "OPen",, "T"),"") -> 295.81 | M47: =IFERROR(RTD("cqg.rtd", ,"ContractData", A47, "HIgh",, "T"),"") -> 297.07 | N47: =IFERROR(RTD("cqg.rtd", ,"ContractData",A47, "LOw",, "T"),"") -> 291.19 | O47: =IFERROR(RTD("cqg.rtd", ,"ContractData",A47, "T_CVol",, "T"),"") -> 786436 | Q47: =IFERROR(O47/RTD("cqg.rtd",,"StudyData",A47, "MA", "InputChoice=Vol,MAType=Sim,Period=21", "MA","D","-1","all",,,,"T"),"") -> 0.5876502177 | R47: =XLV!AH14 -> https://finance.yahoo.com/quote/COR
A48: =TRIM(XLV!AC15) -> S.US.MRK | B48: News | C48: =IFERROR(RTD("cqg.rtd", ,"ContractData",A48, "LongDescription",, "T")&" ("&RIGHT(A48,LEN(A48)-5)&")","") -> Merck & Co Inc (MRK) | H48: =IFERROR(RTD("cqg.rtd", ,"ContractData",A48, "LastTradeToday",, "T"),"") -> 81.52 | I48: =IFERROR(RTD("cqg.rtd", ,"ContractData",A48, "NetLastTradeToday",, "T"),"") -> -0.91 | J48: =IFERROR(RTD("cqg.rtd", ,"ContractData",A48, "PerCentNetLastTrade",, "T")/100,"") -> -0.01103967002 | K48: =IFERROR(I48/RTD("cqg.rtd",,"StudyData",A48, "ATR", "MaType=Sim,Period=10", "ATR","D","-1","ALL",,,"FALSE","T")/100,"") -> -0.004900376952 | L48: =IFERROR(RTD("cqg.rtd", ,"ContractData",A48, "OPen",, "T"),"") -> 81.98 | M48: =IFERROR(RTD("cqg.rtd", ,"ContractData", A48, "HIgh",, "T"),"") -> 82.66 | N48: =IFERROR(RTD("cqg.rtd", ,"ContractData",A48, "LOw",, "T"),"") -> 81.33 | O48: =IFERROR(RTD("cqg.rtd", ,"ContractData",A48, "T_CVol",, "T"),"") -> 8932631 | Q48: =IFERROR(O48/RTD("cqg.rtd",,"StudyData",A48, "MA", "InputChoice=Vol,MAType=Sim,Period=21", "MA","D","-1","all",,,,"T"),"") -> 0.508072874 | R48: =XLV!AH15 -> https://finance.yahoo.com/quote/MRK
C49: CQG Inc., Copyright © 2025 | G49: Designed by Thom Hartle | J49: The Health Care Select Sector SPDR® Fund seeks to provide an effective representation of the health care sector of the S&P 500 Index. | Z49: =Z52 -> 53% of the stocks in the ETF are higher today
Z51: =XLV!B99 -> 0.5333333333 | AA51: of the stocks in the ETF are higher today
Z52: =TEXT(Display!Z51,"0%")&" "&Display!AA51 -> 53% of the stocks in the ETF are higher today

Sheet XLV (hidden)
A1: S.A | B1: =IF(J1>0,1,0) -> 0 | C1: S.US.LLY | D1: =RTD("cqg.rtd", ,"ContractData",C1, "LongDescription",, "T") -> Lilly (Eli) & Company | H1: =RTD("cqg.rtd", ,"ContractData",C1, "LastTradeToday",, "T") -> 761.5 | I1: =RTD("cqg.rtd", ,"ContractData",C1, "NetLastTradeToday",, "T") -> -28.3 | J1: =IFERROR(RTD("cqg.rtd", ,"ContractData",C1, "PerCentNetLastTrade",, "T")/100,"") -> -0.03583185617 | K1: =RTD("cqg.rtd", ,"ContractData", C1, "T_CVol",, "T") -> 4074177 | L1: 1 | M1: =IFERROR(RANK($J1,$J$1:J$60)+COUNTIF($J$1:J1,J1)-1,"") -> 56 | N1: =C1 -> S.US.LLY | O1: =TRIM(VLOOKUP($L1,$M$1:$N$60,2,FALSE)) -> S.US.IQV | P1: =RTD("cqg.rtd", ,"ContractData",O1, "LongDescription",, "T") -> IQVIA Holdings, Inc. | Q1: =IFERROR(RTD("cqg.rtd", ,"ContractData",O1, "PerCentNetLastTrade",, "T")/100,"") -> 0.0290595058 | R1: ="https://finance.yahoo.com/quote/"&RIGHT(O1,(LEN(O1)-5)) -> https://finance.yahoo.com/quote/IQV | T1: =IF(Q1>=0,Q1,NA()) -> 0.0290595058 | U1: =IF(Q1>=0,NA(),-1*Q1) ->  | W1: =IFERROR(RTD("cqg.rtd", ,"ContractData",O1, "LongDescription",, "T"),"") -> IQVIA Holdings, Inc. | Z1: =IFERROR(T1,Q1) -> 0.0290595058 | AA1: =MIN(J1:J98) -> -0.1221883616 | AB1: =VLOOKUP(AA1,J1:O98,4,FALSE) -> 60 | AC1: =VLOOKUP($AB1,$M$1:$N$98,2,FALSE) -> S.US.ELV | AD1: =IFERROR(RTD("cqg.rtd", ,"ContractData",AC1, "PerCentNetLastTrade",, "T")/100,"") -> -0.1221883616 | AE1: =IFERROR(RTD("cqg.rtd", ,"ContractData",AC1, "LongDescription",, "T"),"") -> Elevance Health, Inc. | AF1: =IFERROR(U1,"") ->  | AG1: =IFERROR(AD1*-1,"") -> 0.1221883616 | AH1: ="https://finance.yahoo.com/quote/"&RIGHT(AC1,(LEN(AC1)-5)) -> https://finance.yahoo.com/quote/ELV
A2: S.ABBV | B2: =IF(J2>0,1,0) -> 0 | C2: S.US.JNJ | D2: =RTD("cqg.rtd", ,"ContractData",C2, "LongDescription",, "T") -> Johnson & Johnson | H2: =RTD("cqg.rtd", ,"ContractData",C2, "LastTradeToday",, "T") -> 162.98 | I2: =RTD("cqg.rtd", ,"ContractData",C2, "NetLastTradeToday",, "T") -> -1.8 | J2: =IFERROR(RTD("cqg.rtd", ,"ContractData",C2, "PerCentNetLastTrade",, "T")/100,"") -> -0.01092365578 | K2: =RTD("cqg.rtd", ,"ContractData", C2, "T_CVol",, "T") -> 11013098 | L2: =L1+1 -> 2 | M2: =IFERROR(RANK($J2,$J$1:J$60)+COUNTIF($J$1:J2,J2)-1,"") -> 45 | N2: =C2 -> S.US.JNJ | O2: =TRIM(VLOOKUP($L2,$M$1:$N$60,2,FALSE)) -> S.US.TECH | P2: =RTD("cqg.rtd", ,"ContractData",O2, "LongDescription",, "T") -> Bio-Techne Corp | Q2: =IFERROR(RTD("cqg.rtd", ,"ContractData",O2, "PerCentNetLastTrade",, "T")/100,"") -> 0.02896312029 | R2: ="https://finance.yahoo.com/quote/"&RIGHT(O2,(LEN(O2)-5)) -> https://finance.yahoo.com/quote/TECH | T2: =IF(Q2>=0,Q2,NA()) -> 0.02896312029 | U2: =IF(Q2>=0,NA(),-1*Q2) ->  | W2: =IFERROR(RTD("cqg.rtd", ,"ContractData",O2, "LongDescription",, "T"),"") -> Bio-Techne Corp | Z2: =IFERROR(T2,Q2) -> 0.02896312029 | AB2: =AB1-1 -> 59 | AC2: S.US.ABT | AD2: =IFERROR(RTD("cqg.rtd", ,"ContractData",AC2, "PerCentNetLastTrade",, "T")/100,"") -> -0.08524366176 | AE2: =IFERROR(RTD("cqg.rtd", ,"ContractData",AC2, "LongDescription",, "T"),"") -> Abbott Laboratories | AF2: =IFERROR(U2,"") ->  | AG2: =IFERROR(AD2*-1,"") -> 0.08524366176 | AH2: ="https://finance.yahoo.com/quote/"&RIGHT(AC2,(LEN(AC2)-5)) -> https://finance.yahoo.com/quote/ABT
A3: S.ABT | B3: 1 | C3: S.US.ABBV | D3: =RTD("cqg.rtd", ,"ContractData",C3, "LongDescription",, "T") -> AbbVie Inc. | H3: =RTD("cqg.rtd", ,"ContractData",C3, "LastTradeToday",, "T") -> 191.4 | I3: =RTD("cqg.rtd", ,"ContractData",C3, "NetLastTradeToday",, "T") -> 0.82 | J3: =IFERROR(RTD("cqg.rtd", ,"ContractData",C3, "PerCentNetLastTrade",, "T")/100,"") -> 0.004302655053 | K3: =RTD("cqg.rtd", ,"ContractData", C3, "T_CVol",, "T") -> 4807356 | L3: =L2+1 -> 3 | M3: =IFERROR(RANK($J3,$J$1:J$60)+COUNTIF($J$1:J3,J3)-1,"") -> 25 | N3: S.US.ABBV | O3: S.US.A | P3: =RTD("cqg.rtd", ,"ContractData",O3, "LongDescription",, "T") -> Agilent Technologies | Q3: =IFERROR(RTD("cqg.rtd", ,"ContractData",O3, "PerCentNetLastTrade",, "T")/100,"") -> 0.02583090893 | R3: https://finance.yahoo.com/quote/A | T3: 0.02583090893 | W3: =IFERROR(RTD("cqg.rtd", ,"ContractData",O3, "LongDescription",, "T"),"") -> Agilent Technologies | Z3: 0.02583090893 | AB3: =AB2-1 -> 58 | AC3: S.US.MOH | AD3: =IFERROR(RTD("cqg.rtd", ,"ContractData",AC3, "PerCentNetLastTrade",, "T")/100,"") -> -0.05466074239 | AE3: =IFERROR(RTD("cqg.rtd", ,"ContractData",AC3, "LongDescription",, "T"),"") -> Mohlina Heathcare Inc | AG3: 0.05466074239 | AH3: https://finance.yahoo.com/quote/MOH
A4: S.ALGN | B4: 0 | C4: S.US.UNH | D4: =RTD("cqg.rtd", ,"ContractData",C4, "LongDescription",, "T") -> United Health Group Inc | H4: =RTD("cqg.rtd", ,"ContractData",C4, "LastTradeToday",, "T") -> 288.07 | I4: =RTD("cqg.rtd", ,"ContractData",C4, "NetLastTradeToday",, "T") -> -4.42 | J4: =IFERROR(RTD("cqg.rtd", ,"ContractData",C4, "PerCentNetLastTrade",, "T")/100,"") -> -0.01511162775 | K4: =RTD("cqg.rtd", ,"ContractData", C4, "T_CVol",, "T") -> 14694424 | L4: 4 | M4: =IFERROR(RANK($J4,$J$1:J$60)+COUNTIF($J$1:J4,J4)-1,"") -> 52 | N4: S.US.UNH | O4: S.US.WAT | P4: =RTD("cqg.rtd", ,"ContractData",O4, "LongDescription",, "T") -> Waters Corporation | Q4: =IFERROR(RTD("cqg.rtd", ,"ContractData",O4, "PerCentNetLastTrade",, "T")/100,"") -> 0.0254178754 | R4: https://finance.yahoo.com/quote/WAT | T4: 0.0254178754 | W4: =IFERROR(RTD("cqg.rtd", ,"ContractData",O4, "LongDescription",, "T"),"") -> Waters Corporation | Z4: 0.0254178754 | AB4: 57 | AC4: S.US.CNC | AD4: =IFERROR(RTD("cqg.rtd", ,"ContractData",AC4, "PerCentNetLastTrade",, "T")/100,"") -> -0.0417625781 | AE4: =IFERROR(RTD("cqg.rtd", ,"ContractData",AC4, "LongDescription",, "T"),"") -> Cenetene Corporation | AG4: 0.0417625781 | AH4: https://finance.yahoo.com/quote/CNC
A5: S.AMGN | B5: 0 | C5: S.US.ABT | D5: =RTD("cqg.rtd", ,"ContractData",C5, "LongDescription",, "T") -> Abbott Laboratories | H5: =RTD("cqg.rtd", ,"ContractData",C5, "LastTradeToday",, "T") -> 120.51 | I5: =RTD("cqg.rtd", ,"ContractData",C5, "NetLastTradeToday",, "T") -> -11.23 | J5: =IFERROR(RTD("cqg.rtd", ,"ContractData",C5, "PerCentNetLastTrade",, "T")/100,"") -> -0.08524366176 | K5: =RTD("cqg.rtd", ,"ContractData", C5, "T_CVol",, "T") -> 27523090 | L5: 5 | M5: =IFERROR(RANK($J5,$J$1:J$60)+COUNTIF($J$1:J5,J5)-1,"") -> 59 | N5: S.US.ABT | O5: S.US.DVA | P5: =RTD("cqg.rtd", ,"ContractData",O5, "LongDescription",, "T") -> DaVita Inc. | Q5: =IFERROR(RTD("cqg.rtd", ,"ContractData",O5, "PerCentNetLastTrade",, "T")/100,"") -> 0.02253601483 | R5: https://finance.yahoo.com/quote/DVA | T5: 0.02253601483 | W5: =IFERROR(RTD("cqg.rtd", ,"ContractData",O5, "LongDescription",, "T"),"") -> DaVita Inc. | Z5: 0.02253601483 | AB5: 56 | AC5: S.US.LLY | AD5: =IFERROR(RTD("cqg.rtd", ,"ContractData",AC5, "PerCentNetLastTrade",, "T")/100,"") -> -0.03583185617 | AE5: =IFERROR(RTD("cqg.rtd", ,"ContractData",AC5, "LongDescription",, "T"),"") -> Lilly (Eli) & Company | AG5: 0.03583185617 | AH5: https://finance.yahoo.com/quote/LLY
A6: S.BAX | B6: 0 | C6: S.US.MRK | D6: =RTD("cqg.rtd", ,"ContractData",C6, "LongDescription",, "T") -> Merck & Co Inc | H6: =RTD("cqg.rtd", ,"ContractData",C6, "LastTradeToday",, "T") -> 81.52 | I6: =RTD("cqg.rtd", ,"ContractData",C6, "NetLastTradeToday",, "T") -> -0.91 | J6: =IFERROR(RTD("cqg.rtd", ,"ContractData",C6, "PerCentNetLastTrade",, "T")/100,"") -> -0.01103967002 | K6: =RTD("cqg.rtd", ,"ContractData", C6, "T_CVol",, "T") -> 8932631 | L6: 6 | M6: =IFERROR(RANK($J6,$J$1:J$60)+COUNTIF($J$1:J6,J6)-1,"") -> 46 | N6: S.US.MRK | O6: S.US.VTRS | P6: =RTD("cqg.rtd", ,"ContractData",O6, "LongDescription",, "T") -> Viatris Inc. | Q6: =IFERROR(RTD("cqg.rtd", ,"ContractData",O6, "PerCentNetLastTrade",, "T")/100,"") -> 0.02092511013 | R6: https://finance.yahoo.com/quote/VTRS | T6: 0.02092511013 | W6: =IFERROR(RTD("cqg.rtd", ,"ContractData",O6, "LongDescription",, "T"),"") -> Viatris Inc. | Z6: 0.02092511013 | AB6: 55 | AC6: S.US.CI | AD6: =IFERROR(RTD("cqg.rtd", ,"ContractData",AC6, "PerCentNetLastTrade",, "T")/100,"") -> -0.02465502583 | AE6: =IFERROR(RTD("cqg.rtd", ,"ContractData",AC6, "LongDescription",, "T"),"") -> The Cigna Group | AG6: 0.02465502583 | AH6: https://finance.yahoo.com/quote/CI
A7: S.BDX | B7: 1 | C7: S.US.ISRG | D7: =RTD("cqg.rtd", ,"ContractData",C7, "LongDescription",, "T") -> Intuitive Surgical Inc | H7: =RTD("cqg.rtd", ,"ContractData",C7, "LastTradeToday",, "T") -> 516.16 | I7: =RTD("cqg.rtd", ,"ContractData",C7, "NetLastTradeToday",, "T") -> 3.52 | J7: =IFERROR(RTD("cqg.rtd", ,"ContractData",C7, "PerCentNetLastTrade",, "T")/100,"") -> 0.006866416979 | K7: =RTD("cqg.rtd", ,"ContractData", C7, "T_CVol",, "T") -> 2001698 | L7: 7 | M7: =IFERROR(RANK($J7,$J$1:J$60)+COUNTIF($J$1:J7,J7)-1,"") -> 22 | N7: S.US.ISRG | O7: S.US.TMO | P7: =RTD("cqg.rtd", ,"ContractData",O7, "LongDescription",, "T") -> Thermo Electron Corp | Q7: =IFERROR(RTD("cqg.rtd", ,"ContractData",O7, "PerCentNetLastTrade",, "T")/100,"") -> 0.02082582691 | R7: https://finance.yahoo.com/quote/TMO | T7: 0.02082582691 | W7: =IFERROR(RTD("cqg.rtd", ,"ContractData",O7, "LongDescription",, "T"),"") -> Thermo Electron Corp | Z7: 0.02082582691 | AB7: 54 | AC7: S.US.BAX | AD7: =IFERROR(RTD("cqg.rtd", ,"ContractData",AC7, "PerCentNetLastTrade",, "T")/100,"") -> -0.01691928093 | AE7: =IFERROR(RTD("cqg.rtd", ,"ContractData",AC7, "LongDescription",, "T"),"") -> Baxter International Inc | AG7: 0.01691928093 | AH7: https://finance.yahoo.com/quote/BAX
A8: S.BIIB | B8: 1 | C8: S.US.TMO | D8: =RTD("cqg.rtd", ,"ContractData",C8, "LongDescription",, "T") -> Thermo Electron Corp | H8: =RTD("cqg.rtd", ,"ContractData",C8, "LastTradeToday",, "T") -> 424.98 | I8: =RTD("cqg.rtd", ,"ContractData",C8, "NetLastTradeToday",, "T") -> 8.67 | J8: =IFERROR(RTD("cqg.rtd", ,"ContractData",C8, "PerCentNetLastTrade",, "T")/100,"") -> 0.02082582691 | K8: =RTD("cqg.rtd", ,"ContractData", C8, "T_CVol",, "T") -> 2489763 | L8: 8 | M8: =IFERROR(RANK($J8,$J$1:J$60)+COUNTIF($J$1:J8,J8)-1,"") -> 7 | N8: S.US.TMO | O8: S.US.BMY | P8: =RTD("cqg.rtd", ,"ContractData",O8, "LongDescription",, "T") -> Bristol-Myers Squibb Co | Q8: =IFERROR(RTD("cqg.rtd", ,"ContractData",O8, "PerCentNetLastTrade",, "T")/100,"") -> 0.01886792453 | R8: https://finance.yahoo.com/quote/BMY | T8: 0.01886792453 | W8: =IFERROR(RTD("cqg.rtd", ,"ContractData",O8, "LongDescription",, "T"),"") -> Bristol-Myers Squibb Co | Z8: 0.01886792453 | AB8: 53 | AC8: S.US.PODD | AD8: =IFERROR(RTD("cqg.rtd", ,"ContractData",AC8, "PerCentNetLastTrade",, "T")/100,"") -> -0.0167204357 | AE8: =IFERROR(RTD("cqg.rtd", ,"ContractData",AC8, "LongDescription",, "T"),"") -> Insulet Corporation | AG8: 0.0167204357 | AH8: https://finance.yahoo.com/quote/PODD
A9: S.BMY | B9: 0 | C9: S.US.AMGN | D9: =RTD("cqg.rtd", ,"ContractData",C9, "LongDescription",, "T") -> Amgen Inc | H9: =RTD("cqg.rtd", ,"ContractData",C9, "LastTradeToday",, "T") -> 298.25 | I9: =RTD("cqg.rtd", ,"ContractData",C9, "NetLastTradeToday",, "T") -> -0.77 | J9: =IFERROR(RTD("cqg.rtd", ,"ContractData",C9, "PerCentNetLastTrade",, "T")/100,"") -> -0.00257507859 | K9: =RTD("cqg.rtd", ,"ContractData", C9, "T_CVol",, "T") -> 1702198 | L9: 9 | M9: =IFERROR(RANK($J9,$J$1:J$60)+COUNTIF($J$1:J9,J9)-1,"") -> 35 | N9: S.US.AMGN | O9: S.US.MTD | P9: =RTD("cqg.rtd", ,"ContractData",O9, "LongDescription",, "T") -> Mettler-Toledo Internatl Inc | Q9: =IFERROR(RTD("cqg.rtd", ,"ContractData",O9, "PerCentNetLastTrade",, "T")/100,"") -> 0.0181388279 | R9: https://finance.yahoo.com/quote/MTD | T9: 0.0181388279 | W9: =IFERROR(RTD("cqg.rtd", ,"ContractData",O9, "LongDescription",, "T"),"") -> Mettler-Toledo Internatl Inc | Z9: 0.0181388279 | AB9: 52 | AC9: S.US.UNH | AD9: =IFERROR(RTD("cqg.rtd", ,"ContractData",AC9, "PerCentNetLastTrade",, "T")/100,"") -> -0.01511162775 | AE9: =IFERROR(RTD("cqg.rtd", ,"ContractData",AC9, "LongDescription",, "T"),"") -> United Health Group Inc | AG9: 0.01511162775 | AH9: https://finance.yahoo.com/quote/UNH
A10: S.BSX | B10: 1 | C10: S.US.BSX | D10: =RTD("cqg.rtd", ,"ContractData",C10, "LongDescription",, "T") -> Boston Scientific Corp | H10: =RTD("cqg.rtd", ,"ContractData",C10, "LastTradeToday",, "T") -> 104.65 | I10: =RTD("cqg.rtd", ,"ContractData",C10, "NetLastTradeToday",, "T") -> 1.46 | J10: =IFERROR(RTD("cqg.rtd", ,"ContractData",C10, "PerCentNetLastTrade",, "T")/100,"") -> 0.01414865782 | K10: =RTD("cqg.rtd", ,"ContractData", C10, "T_CVol",, "T") -> 9473184 | L10: 10 | M10: =IFERROR(RANK($J10,$J$1:J$60)+COUNTIF($J$1:J10,J10)-1,"") -> 11 | N10: S.US.BSX | O10: S.US.BDX | P10: =RTD("cqg.rtd", ,"ContractData",O10, "LongDescription",, "T") -> Becton Dickinson & Co | Q10: =IFERROR(RTD("cqg.rtd", ,"ContractData",O10, "PerCentNetLastTrade",, "T")/100,"") -> 0.0147529029 | R10: https://finance.yahoo.com/quote/BDX | T10: 0.0147529029 | W10: =IFERROR(RTD("cqg.rtd", ,"ContractData",O10, "LongDescription",, "T"),"") -> Becton Dickinson & Co | Z10: 0.0147529029 | AB10: 51 | AC10: S.US.VRTX | AD10: =IFERROR(RTD("cqg.rtd", ,"ContractData",AC10, "PerCentNetLastTrade",, "T")/100,"") -> -0.01337450751 | AE10: =IFERROR(RTD("cqg.rtd", ,"ContractData",AC10, "LongDescription",, "T"),"") -> Vertex Pharmaceuticals Incorporated | AG10: 0.01337450751 | AH10: https://finance.yahoo.com/quote/VRTX
A11: S.CAH | B11: 0 | C11: S.US.PFE | D11: =RTD("cqg.rtd", ,"ContractData",C11, "LongDescription",, "T") -> Pfizer Inc | H11: =RTD("cqg.rtd", ,"ContractData",C11, "LastTradeToday",, "T") -> 24.58 | I11: =RTD("cqg.rtd", ,"ContractData",C11, "NetLastTradeToday",, "T") -> -0.03 | J11: =IFERROR(RTD("cqg.rtd", ,"ContractData",C11, "PerCentNetLastTrade",, "T")/100,"") -> -0.00121901666 | K11: =RTD("cqg.rtd", ,"ContractData", C11, "T_CVol",, "T") -> 47260963 | L11: 11 | M11: =IFERROR(RANK($J11,$J$1:J$60)+COUNTIF($J$1:J11,J11)-1,"") -> 34 | N11: S.US.PFE | O11: S.US.BSX | P11: =RTD("cqg.rtd", ,"ContractData",O11, "LongDescription",, "T") -> Boston Scientific Corp | Q11: =IFERROR(RTD("cqg.rtd", ,"ContractData",O11, "PerCentNetLastTrade",, "T")/100,"") -> 0.01414865782 | R11: https://finance.yahoo.com/quote/BSX | T11: 0.01414865782 | W11: =IFERROR(RTD("cqg.rtd", ,"ContractData",O11, "LongDescription",, "T"),"") -> Boston Scientific Corp | Z11: 0.01414865782 | AB11: 50 | AC11: S.US.STE | AD11: =IFERROR(RTD("cqg.rtd", ,"ContractData",AC11, "PerCentNetLastTrade",, "T")/100,"") -> -0.01331165978 | AE11: =IFERROR(RTD("cqg.rtd", ,"ContractData",AC11, "LongDescription",, "T"),"") -> STERIS plc | AG11: 0.01331165978 | AH11: https://finance.yahoo.com/quote/STE
A12: S.CI | B12: 0 | C12: S.US.GILD | D12: =RTD("cqg.rtd", ,"ContractData",C12, "LongDescription",, "T") -> Gilead Sciences Inc | H12: =RTD("cqg.rtd", ,"ContractData",C12, "LastTradeToday",, "T") -> 108.8 | I12: =RTD("cqg.rtd", ,"ContractData",C12, "NetLastTradeToday",, "T") -> -1.05 | J12: =IFERROR(RTD("cqg.rtd", ,"ContractData",C12, "PerCentNetLastTrade",, "T")/100,"") -> -0.009558488848 | K12: =RTD("cqg.rtd", ,"ContractData", C12, "T_CVol",, "T") -> 4266817 | L12: 12 | M12: =IFERROR(RANK($J12,$J$1:J$60)+COUNTIF($J$1:J12,J12)-1,"") -> 42 | N12: S.US.GILD | O12: S.US.SOLV | P12: =RTD("cqg.rtd", ,"ContractData",O12, "LongDescription",, "T") -> Solventum Corporation | Q12: =IFERROR(RTD("cqg.rtd", ,"ContractData",O12, "PerCentNetLastTrade",, "T")/100,"") -> 0.01136519239 | R12: https://finance.yahoo.com/quote/SOLV | T12: 0.01136519239 | W12: =IFERROR(RTD("cqg.rtd", ,"ContractData",O12, "LongDescription",, "T"),"") -> Solventum Corporation | Z12: 0.01136519239 | AB12: 49 | AC12: S.US.HUM | AD12: =IFERROR(RTD("cqg.rtd", ,"ContractData",AC12, "PerCentNetLastTrade",, "T")/100,"") -> -0.01328566384 | AE12: =IFERROR(RTD("cqg.rtd", ,"ContractData",AC12, "LongDescription",, "T"),"") -> Humana Inc | AG12: 0.01328566384 | AH12: https://finance.yahoo.com/quote/HUM
A13: S.CNC | B13: 0 | C13: S.US.SYK | D13: =RTD("cqg.rtd", ,"ContractData",C13, "LongDescription",, "T") -> Stryker Corp | H13: =RTD("cqg.rtd", ,"ContractData",C13, "LastTradeToday",, "T") -> 388.9 | I13: =RTD("cqg.rtd", ,"ContractData",C13, "NetLastTradeToday",, "T") -> -1.97 | J13: =IFERROR(RTD("cqg.rtd", ,"ContractData",C13, "PerCentNetLastTrade",, "T")/100,"") -> -0.005040038888 | K13: =RTD("cqg.rtd", ,"ContractData", C13, "T_CVol",, "T") -> 1039832 | L13: 13 | M13: =IFERROR(RANK($J13,$J$1:J$60)+COUNTIF($J$1:J13,J13)-1,"") -> 39 | N13: S.US.SYK | O13: S.US.CRL | P13: =RTD("cqg.rtd", ,"ContractData",O13, "LongDescription",, "T") -> Charles River Labs Hldgs Inc | Q13: =IFERROR(RTD("cqg.rtd", ,"ContractData",O13, "PerCentNetLastTrade",, "T")/100,"") -> 0.01135923583 | R13: https://finance.yahoo.com/quote/CRL | T13: 0.01135923583 | W13: =IFERROR(RTD("cqg.rtd", ,"ContractData",O13, "LongDescription",, "T"),"") -> Charles River Labs Hldgs Inc | Z13: 0.01135923583 | AB13: 48 | AC13: S.US.WST | AD13: =IFERROR(RTD("cqg.rtd", ,"ContractData",AC13, "PerCentNetLastTrade",, "T")/100,"") -> -0.0124342633 | AE13: =IFERROR(RTD("cqg.rtd", ,"ContractData",AC13, "LongDescription",, "T"),"") -> West Pharmaceuticals Svcs Inc | AG13: 0.0124342633 | AH13: https://finance.yahoo.com/quote/WST
A14: S.COO | B14: 1 | C14: S.US.DHR | D14: =RTD("cqg.rtd", ,"ContractData",C14, "LongDescription",, "T") -> Danaher Corporation | H14: =RTD("cqg.rtd", ,"ContractData",C14, "LastTradeToday",, "T") -> 194.79 | I14: =RTD("cqg.rtd", ,"ContractData",C14, "NetLastTradeToday",, "T") -> 1.49 | J14: =IFERROR(RTD("cqg.rtd", ,"ContractData",C14, "PerCentNetLastTrade",, "T")/100,"") -> 0.007708225556 | K14: =RTD("cqg.rtd", ,"ContractData", C14, "T_CVol",, "T") -> 3064706 | L14: 14 | M14: =IFERROR(RANK($J14,$J$1:J$60)+COUNTIF($J$1:J14,J14)-1,"") -> 17 | N14: S.US.DHR | O14: S.US.ALGN | P14: =RTD("cqg.rtd", ,"ContractData",O14, "LongDescription",, "T") -> Align Technology Inc | Q14: =IFERROR(RTD("cqg.rtd", ,"ContractData",O14, "PerCentNetLastTrade",, "T")/100,"") -> 0.01067073171 | R14: https://finance.yahoo.com/quote/ALGN | T14: 0.01067073171 | W14: =IFERROR(RTD("cqg.rtd", ,"ContractData",O14, "LongDescription",, "T"),"") -> Align Technology Inc | Z14: 0.01067073171 | AB14: 47 | AC14: S.US.COR | AD14: =IFERROR(RTD("cqg.rtd", ,"ContractData",AC14, "PerCentNetLastTrade",, "T")/100,"") -> -0.01158378941 | AE14: =IFERROR(RTD("cqg.rtd", ,"ContractData",AC14, "LongDescription",, "T"),"") -> Cencora Inc. | AG14: 0.01158378941 | AH14: https://finance.yahoo.com/quote/COR
A15: S.COR | B15: 0 | C15: S.US.VRTX | D15: =RTD("cqg.rtd", ,"ContractData",C15, "LongDescription",, "T") -> Vertex Pharmaceuticals Incorporated | H15: =RTD("cqg.rtd", ,"ContractData",C15, "LastTradeToday",, "T") -> 463.27 | I15: =RTD("cqg.rtd", ,"ContractData",C15, "NetLastTradeToday",, "T") -> -6.28 | J15: =IFERROR(RTD("cqg.rtd", ,"ContractData",C15, "PerCentNetLastTrade",, "T")/100,"") -> -0.01337450751 | K15: =RTD("cqg.rtd", ,"ContractData", C15, "T_CVol",, "T") -> 1251326 | L15: 15 | M15: =IFERROR(RANK($J15,$J$1:J$60)+COUNTIF($J$1:J15,J15)-1,"") -> 51 | N15: S.US.VRTX | O15: S.US.GEHC | P15: =RTD("cqg.rtd", ,"ContractData",O15, "LongDescription",, "T") -> GE HealthCare Technologies Inc. | Q15: =IFERROR(RTD("cqg.rtd", ,"ContractData",O15, "PerCentNetLastTrade",, "T")/100,"") -> 0.01047051027 | R15: https://finance.yahoo.com/quote/GEHC | T15: 0.01047051027 | W15: =IFERROR(RTD("cqg.rtd", ,"ContractData",O15, "LongDescription",, "T"),"") -> GE HealthCare Technologies Inc. | Z15: 0.01047051027 | AB15: 46 | AC15: S.US.MRK | AD15: =IFERROR(RTD("cqg.rtd", ,"ContractData",AC15, "PerCentNetLastTrade",, "T")/100,"") -> -0.01103967002 | AE15: =IFERROR(RTD("cqg.rtd", ,"ContractData",AC15, "LongDescription",, "T"),"") -> Merck & Co Inc | AG15: 0.01103967002 | AH15: https://finance.yahoo.com/quote/MRK
A16: S.CRL | B16: 0 | C16: S.US.MDT | D16: =RTD("cqg.rtd", ,"ContractData",C16, "LongDescription",, "T") -> Medtronic Inc | H16: =RTD("cqg.rtd", ,"ContractData",C16, "LastTradeToday",, "T") -> 89.53 | I16: =RTD("cqg.rtd", ,"ContractData",C16, "NetLastTradeToday",, "T") -> -0.25 | J16: =IFERROR(RTD("cqg.rtd", ,"ContractData",C16, "PerCentNetLastTrade",, "T")/100,"") -> -0.00278458454 | K16: =RTD("cqg.rtd", ,"ContractData", C16, "T_CVol",, "T") -> 6951025 | L16: 16 | M16: =IFERROR(RANK($J16,$J$1:J$60)+COUNTIF($J$1:J16,J16)-1,"") -> 36 | N16: S.US.MDT | O16: S.US.RMD
A17: S.CVS | B17: 1 | C17: S.US.BMY | D17: =RTD("cqg.rtd", ,"ContractData",C17, "LongDescription",, "T") -> Bristol-Myers Squibb Co | H17: =RTD("cqg.rtd", ,"ContractData",C17, "LastTradeToday",, "T") -> 48.06 | I17: =RTD("cqg.rtd", ,"ContractData",C17, "NetLastTradeToday",, "T") -> 0.89 | J17: =IFERROR(RTD("cqg.rtd", ,"ContractData",C17, "PerCentNetLastTrade",, "T")/100,"") -> 0.01886792453 | K17: =RTD("cqg.rtd", ,"ContractData", C17, "T_CVol",, "T") -> 16415347 | L17: 17 | M17: =IFERROR(RANK($J17,$J$1:J$60)+COUNTIF($J$1:J17,J17)-1,"") -> 8 | N17: S.US.BMY | O17: =VLOOKUP($L17,$M$1:$N$60,2,FALSE) -> S.US.DHR
A18: S.DGX | B18: 0 | C18: S.US.MCK | D18: =RTD("cqg.rtd", ,"ContractData",C18, "LongDescription",, "T") -> McKesson Corporation | H18: =RTD("cqg.rtd", ,"ContractData",C18, "LastTradeToday",, "T") -> 710.28 | I18: =RTD("cqg.rtd", ,"ContractData",C18, "NetLastTradeToday",, "T") -> -5.46 | J18: =IFERROR(RTD("cqg.rtd", ,"ContractData",C18, "PerCentNetLastTrade",, "T")/100,"") -> -0.007628468438 | K18: =RTD("cqg.rtd", ,"ContractData", C18, "T_CVol",, "T") -> 402160 | L18: 18 | M18: =IFERROR(RANK($J18,$J$1:J$60)+COUNTIF($J$1:J18,J18)-1,"") -> 40 | N18: S.US.MCK | O18: S.US.COO
A19: S.DHR | B19: 0 | C19: S.US.CVS | D19: =RTD("cqg.rtd", ,"ContractData",C19, "LongDescription",, "T") -> CVS Health Corporation | H19: =RTD("cqg.rtd", ,"ContractData",C19, "LastTradeToday",, "T") -> 63.3 | I19: =RTD("cqg.rtd", ,"ContractData",C19, "NetLastTradeToday",, "T") -> -0.5 | J19: =IFERROR(RTD("cqg.rtd", ,"ContractData",C19, "PerCentNetLastTrade",, "T")/100,"") -> -0.007836990596 | K19: =RTD("cqg.rtd", ,"ContractData", C19, "T_CVol",, "T") -> 7322005 | L19: 19 | M19: =IFERROR(RANK($J19,$J$1:J$60)+COUNTIF($J$1:J19,J19)-1,"") -> 41 | N19: S.US.CVS | O19: S.US.ZBH
A20: S.DVA | B20: 0 | C20: S.US.CI | D20: =RTD("cqg.rtd", ,"ContractData",C20, "LongDescription",, "T") -> The Cigna Group | H20: =RTD("cqg.rtd", ,"ContractData",C20, "LastTradeToday",, "T") -> 298.28 | I20: =RTD("cqg.rtd", ,"ContractData",C20, "NetLastTradeToday",, "T") -> -7.54 | J20: =IFERROR(RTD("cqg.rtd", ,"ContractData",C20, "PerCentNetLastTrade",, "T")/100,"") -> -0.02465502583 | K20: =RTD("cqg.rtd", ,"ContractData", C20, "T_CVol",, "T") -> 1689060 | L20: 20 | M20: =IFERROR(RANK($J20,$J$1:J$60)+COUNTIF($J$1:J20,J20)-1,"") -> 55 | N20: S.US.CI | O20: S.US.RVTY
A21: S.DXCM | B21: 0 | C21: S.US.ELV | D21: =RTD("cqg.rtd", ,"ContractData",C21, "LongDescription",, "T") -> Elevance Health, Inc. | H21: =RTD("cqg.rtd", ,"ContractData",C21, "LastTradeToday",, "T") -> 302.45 | I21: =RTD("cqg.rtd", ,"ContractData",C21, "NetLastTradeToday",, "T") -> -42.1 | J21: =IFERROR(RTD("cqg.rtd", ,"ContractData",C21, "PerCentNetLastTrade",, "T")/100,"") -> -0.1221883616 | K21: =RTD("cqg.rtd", ,"ContractData", C21, "T_CVol",, "T") -> 7388591 | L21: 21 | M21: =IFERROR(RANK($J21,$J$1:J$60)+COUNTIF($J$1:J21,J21)-1,"") -> 60 | N21: S.US.ELV | O21: S.US.DGX
A22: S.ELV | B22: 0 | C22: S.US.ZTS | D22: =RTD("cqg.rtd", ,"ContractData",C22, "LongDescription",, "T") -> Zoetis Inc | H22: =RTD("cqg.rtd", ,"ContractData",C22, "LastTradeToday",, "T") -> 150.03 | I22: =RTD("cqg.rtd", ,"ContractData",C22, "NetLastTradeToday",, "T") -> -1.51 | J22: =IFERROR(RTD("cqg.rtd", ,"ContractData",C22, "PerCentNetLastTrade",, "T")/100,"") -> -0.009964365844 | K22: =RTD("cqg.rtd", ,"ContractData", C22, "T_CVol",, "T") -> 3555481 | L22: 22 | M22: =IFERROR(RANK($J22,$J$1:J$60)+COUNTIF($J$1:J22,J22)-1,"") -> 43 | N22: S.US.ZTS | O22: S.US.ISRG
A23: S.EW | B23: 1 | C23: S.US.HCA | D23: =RTD("cqg.rtd", ,"ContractData",C23, "LongDescription",, "T") -> HCA Holdings Inc. | H23: =RTD("cqg.rtd", ,"ContractData",C23, "LastTradeToday",, "T") -> 362.6 | I23: =RTD("cqg.rtd", ,"ContractData",C23, "NetLastTradeToday",, "T") -> 0.02 | J23: =IFERROR(RTD("cqg.rtd", ,"ContractData",C23, "PerCentNetLastTrade",, "T")/100,"") -> 5.51602405e-05 | K23: =RTD("cqg.rtd", ,"ContractData", C23, "T_CVol",, "T") -> 1226035 | L23: 23 | M23: =IFERROR(RANK($J23,$J$1:J$60)+COUNTIF($J$1:J23,J23)-1,"") -> 32 | N23: S.US.HCA | O23: S.US.LH
A24: S.GEHC | B24: 1 | C24: S.US.REGN | D24: =RTD("cqg.rtd", ,"ContractData",C24, "LongDescription",, "T") -> Regeneron Pharm Inc | H24: =RTD("cqg.rtd", ,"ContractData",C24, "LastTradeToday",, "T") -> 550 | I24: =RTD("cqg.rtd", ,"ContractData",C24, "NetLastTradeToday",, "T") -> 2.07 | J24: =IFERROR(RTD("cqg.rtd", ,"ContractData",C24, "PerCentNetLastTrade",, "T")/100,"") -> 0.003777854835 | K24: =RTD("cqg.rtd", ,"ContractData", C24, "T_CVol",, "T") -> 989145 | L24: 24 | M24: =IFERROR(RANK($J24,$J$1:J$60)+COUNTIF($J$1:J24,J24)-1,"") -> 26 | N24: S.US.REGN | O24: S.US.MRNA
A25: S.GILD | B25: 0 | C25: S.US.COR | D25: =RTD("cqg.rtd", ,"ContractData",C25, "LongDescription",, "T") -> Cencora Inc. | H25: =RTD("cqg.rtd", ,"ContractData",C25, "LastTradeToday",, "T") -> 294.38 | I25: =RTD("cqg.rtd", ,"ContractData",C25, "NetLastTradeToday",, "T") -> -3.45 | J25: =IFERROR(RTD("cqg.rtd", ,"ContractData",C25, "PerCentNetLastTrade",, "T")/100,"") -> -0.01158378941 | K25: =RTD("cqg.rtd", ,"ContractData", C25, "T_CVol",, "T") -> 786436 | L25: 25 | M25: =IFERROR(RANK($J25,$J$1:J$60)+COUNTIF($J$1:J25,J25)-1,"") -> 47 | N25: S.US.COR | O25: S.US.ABBV
A26: S.HCA | B26: 1 | C26: S.US.BDX | D26: =RTD("cqg.rtd", ,"ContractData",C26, "LongDescription",, "T") -> Becton Dickinson & Co | H26: =RTD("cqg.rtd", ,"ContractData",C26, "LastTradeToday",, "T") -> 180.9 | I26: =RTD("cqg.rtd", ,"ContractData",C26, "NetLastTradeToday",, "T") -> 2.63 | J26: =IFERROR(RTD("cqg.rtd", ,"ContractData",C26, "PerCentNetLastTrade",, "T")/100,"") -> 0.0147529029 | K26: =RTD("cqg.rtd", ,"ContractData", C26, "T_CVol",, "T") -> 3888453 | L26: 26 | M26: =IFERROR(RANK($J26,$J$1:J$60)+COUNTIF($J$1:J26,J26)-1,"") -> 10 | N26: S.US.BDX | O26: S.US.REGN
A27: S.HOLX | B27: 1 | C27: S.US.EW | D27: =RTD("cqg.rtd", ,"ContractData",C27, "LongDescription",, "T") -> Edwards LifeSciences | H27: =RTD("cqg.rtd", ,"ContractData",C27, "LastTradeToday",, "T") -> 76.18 | I27: =RTD("cqg.rtd", ,"ContractData",C27, "NetLastTradeToday",, "T") -> 0.04 | J27: =IFERROR(RTD("cqg.rtd", ,"ContractData",C27, "PerCentNetLastTrade",, "T")/100,"") -> 0.0005253480431 | K27: =RTD("cqg.rtd", ,"ContractData", C27, "T_CVol",, "T") -> 4110836 | L27: 27 | M27: =IFERROR(RANK($J27,$J$1:J$60)+COUNTIF($J$1:J27,J27)-1,"") -> 31 | N27: S.US.EW | O27: S.US.UHS
A28: S.HSIC | B28: 0 | C28: S.US.IDXX | D28: =RTD("cqg.rtd", ,"ContractData",C28, "LongDescription",, "T") -> IDEXX Laboratories Inc | H28: =RTD("cqg.rtd", ,"ContractData",C28, "LastTradeToday",, "T") -> 518.71 | I28: =RTD("cqg.rtd", ,"ContractData",C28, "NetLastTradeToday",, "T") -> -1.86 | J28: =IFERROR(RTD("cqg.rtd", ,"ContractData",C28, "PerCentNetLastTrade",, "T")/100,"") -> -0.003573006512 | K28: =RTD("cqg.rtd", ,"ContractData", C28, "T_CVol",, "T") -> 367720 | L28: 28 | M28: =IFERROR(RANK($J28,$J$1:J$60)+COUNTIF($J$1:J28,J28)-1,"") -> 37 | N28: S.US.IDXX | O28: S.US.HSIC
A29: S.HUM | B29: 0 | C29: S.US.CAH | D29: =RTD("cqg.rtd", ,"ContractData",C29, "LongDescription",, "T") -> Cardinal Health Inc | H29: =RTD("cqg.rtd", ,"ContractData",C29, "LastTradeToday",, "T") -> 159.46 | I29: =RTD("cqg.rtd", ,"ContractData",C29, "NetLastTradeToday",, "T") -> -1.65 | J29: =IFERROR(RTD("cqg.rtd", ,"ContractData",C29, "PerCentNetLastTrade",, "T")/100,"") -> -0.01024144994 | K29: =RTD("cqg.rtd", ,"ContractData", C29, "T_CVol",, "T") -> 1253460 | L29: 29 | M29: =IFERROR(RANK($J29,$J$1:J$60)+COUNTIF($J$1:J29,J29)-1,"") -> 44 | N29: S.US.CAH | O29: S.US.HOLX
A30: S.IDXX | B30: 1 | C30: S.US.RMD | D30: =RTD("cqg.rtd", ,"ContractData",C30, "LongDescription",, "T") -> Resmed Inc | H30: =RTD("cqg.rtd", ,"ContractData",C30, "LastTradeToday",, "T") -> 256.42 | I30: =RTD("cqg.rtd", ,"ContractData",C30, "NetLastTradeToday",, "T") -> 2.17 | J30: =IFERROR(RTD("cqg.rtd", ,"ContractData",C30, "PerCentNetLastTrade",, "T")/100,"") -> 0.008534906588 | K30: =RTD("cqg.rtd", ,"ContractData", C30, "T_CVol",, "T") -> 778543 | L30: 30 | M30: =IFERROR(RANK($J30,$J$1:J$60)+COUNTIF($J$1:J30,J30)-1,"") -> 16 | N30: S.US.RMD | O30: S.US.BIIB
A31: S.INCY | B31: 1 | C31: S.US.A | D31: =RTD("cqg.rtd", ,"ContractData",C31, "LongDescription",, "T") -> Agilent Technologies | H31: =RTD("cqg.rtd", ,"ContractData",C31, "LastTradeToday",, "T") -> 116.36 | I31: =RTD("cqg.rtd", ,"ContractData",C31, "NetLastTradeToday",, "T") -> 2.93 | J31: =IFERROR(RTD("cqg.rtd", ,"ContractData",C31, "PerCentNetLastTrade",, "T")/100,"") -> 0.02583090893 | K31: =RTD("cqg.rtd", ,"ContractData", C31, "T_CVol",, "T") -> 1550930 | L31: 31 | M31: =IFERROR(RANK($J31,$J$1:J$60)+COUNTIF($J$1:J31,J31)-1,"") -> 3 | N31: S.US.A | O31: S.US.EW
A32: S.IQV | B32: 1 | C32: S.US.GEHC | D32: =RTD("cqg.rtd", ,"ContractData",C32, "LongDescription",, "T") -> GE HealthCare Technologies Inc. | H32: =RTD("cqg.rtd", ,"ContractData",C32, "LastTradeToday",, "T") -> 76.24 | I32: =RTD("cqg.rtd", ,"ContractData",C32, "NetLastTradeToday",, "T") -> 0.79 | J32: =IFERROR(RTD("cqg.rtd", ,"ContractData",C32, "PerCentNetLastTrade",, "T")/100,"") -> 0.01047051027 | K32: =RTD("cqg.rtd", ,"ContractData", C32, "T_CVol",, "T") -> 3967626 | L32: 32 | M32: =IFERROR(RANK($J32,$J$1:J$60)+COUNTIF($J$1:J32,J32)-1,"") -> 15 | N32: S.US.GEHC | O32: S.US.HCA
A33: S.ISRG | B33: 0 | C33: S.US.DXCM | D33: =RTD("cqg.rtd", ,"ContractData",C33, "LongDescription",, "T") -> DexCom Inc | H33: =RTD("cqg.rtd", ,"ContractData",C33, "LastTradeToday",, "T") -> 84.1 | I33: =RTD("cqg.rtd", ,"ContractData",C33, "NetLastTradeToday",, "T") -> -0.03 | J33: =IFERROR(RTD("cqg.rtd", ,"ContractData",C33, "PerCentNetLastTrade",, "T")/100,"") -> -0.0003565909901 | K33: =RTD("cqg.rtd", ,"ContractData", C33, "T_CVol",, "T") -> 4777024 | L33: 33 | M33: =IFERROR(RANK($J33,$J$1:J$60)+COUNTIF($J$1:J33,J33)-1,"") -> 33 | N33: S.US.DXCM | O33: S.US.DXCM
A34: S.JNJ | B34: 0 | C34: S.US.HUM | D34: =RTD("cqg.rtd", ,"ContractData",C34, "LongDescription",, "T") -> Humana Inc | H34: =RTD("cqg.rtd", ,"ContractData",C34, "LastTradeToday",, "T") -> 223.55 | I34: =RTD("cqg.rtd", ,"ContractData",C34, "NetLastTradeToday",, "T") -> -3.01 | J34: =IFERROR(RTD("cqg.rtd", ,"ContractData",C34, "PerCentNetLastTrade",, "T")/100,"") -> -0.01328566384 | K34: =RTD("cqg.rtd", ,"ContractData", C34, "T_CVol",, "T") -> 1774797 | L34: 34 | M34: =IFERROR(RANK($J34,$J$1:J$60)+COUNTIF($J$1:J34,J34)-1,"") -> 49 | N34: S.US.HUM | O34: S.US.PFE
A35: S.LH | B35: 1 | C35: S.US.IQV | D35: =RTD("cqg.rtd", ,"ContractData",C35, "LongDescription",, "T") -> IQVIA Holdings, Inc. | H35: =RTD("cqg.rtd", ,"ContractData",C35, "LastTradeToday",, "T") -> 163.25 | I35: =RTD("cqg.rtd", ,"ContractData",C35, "NetLastTradeToday",, "T") -> 4.61 | J35: =IFERROR(RTD("cqg.rtd", ,"ContractData",C35, "PerCentNetLastTrade",, "T")/100,"") -> 0.0290595058 | K35: =RTD("cqg.rtd", ,"ContractData", C35, "T_CVol",, "T") -> 2147755 | L35: 35 | M35: =IFERROR(RANK($J35,$J$1:J$60)+COUNTIF($J$1:J35,J35)-1,"") -> 1 | N35: S.US.IQV | O35: S.US.AMGN
A36: S.LLY | B36: 1 | C36: S.US.MTD | D36: =RTD("cqg.rtd", ,"ContractData",C36, "LongDescription",, "T") -> Mettler-Toledo Internatl Inc | H36: =RTD("cqg.rtd", ,"ContractData",C36, "LastTradeToday",, "T") -> 1205.68 | I36: =RTD("cqg.rtd", ,"ContractData",C36, "NetLastTradeToday",, "T") -> 21.48 | J36: =IFERROR(RTD("cqg.rtd", ,"ContractData",C36, "PerCentNetLastTrade",, "T")/100,"") -> 0.0181388279 | K36: =RTD("cqg.rtd", ,"ContractData", C36, "T_CVol",, "T") -> 126608 | L36: 36 | M36: =IFERROR(RANK($J36,$J$1:J$60)+COUNTIF($J$1:J36,J36)-1,"") -> 9 | N36: S.US.MTD | O36: S.US.MDT
A37: S.MCK | B37: 0 | C37: S.US.STE | D37: =RTD("cqg.rtd", ,"ContractData",C37, "LongDescription",, "T") -> STERIS plc | H37: =RTD("cqg.rtd", ,"ContractData",C37, "LastTradeToday",, "T") -> 224.59 | I37: =RTD("cqg.rtd", ,"ContractData",C37, "NetLastTradeToday",, "T") -> -3.03 | J37: =IFERROR(RTD("cqg.rtd", ,"ContractData",C37, "PerCentNetLastTrade",, "T")/100,"") -> -0.01331165978 | K37: =RTD("cqg.rtd", ,"ContractData", C37, "T_CVol",, "T") -> 1076123 | L37: 37 | M37: =IFERROR(RANK($J37,$J$1:J$60)+COUNTIF($J$1:J37,J37)-1,"") -> 50 | N37: S.US.STE | O37: S.US.IDXX
A38: S.MDT | B38: 1 | C38: S.US.LH | D38: =RTD("cqg.rtd", ,"ContractData",C38, "LongDescription",, "T") -> Laboratory Corp of Amer | H38: =RTD("cqg.rtd", ,"ContractData",C38, "LastTradeToday",, "T") -> 247.24 | I38: =RTD("cqg.rtd", ,"ContractData",C38, "NetLastTradeToday",, "T") -> 1.26 | J38: =IFERROR(RTD("cqg.rtd", ,"ContractData",C38, "PerCentNetLastTrade",, "T")/100,"") -> 0.005122367672 | K38: =RTD("cqg.rtd", ,"ContractData", C38, "T_CVol",, "T") -> 643800 | L38: 38 | M38: =IFERROR(RANK($J38,$J$1:J$60)+COUNTIF($J$1:J38,J38)-1,"") -> 23 | N38: S.US.LH | O38: S.US.INCY
A39: S.MOH | B39: 0 | C39: S.US.PODD | D39: =RTD("cqg.rtd", ,"ContractData",C39, "LongDescription",, "T") -> Insulet Corporation | H39: =RTD("cqg.rtd", ,"ContractData",C39, "LastTradeToday",, "T") -> 283.45 | I39: =RTD("cqg.rtd", ,"ContractData",C39, "NetLastTradeToday",, "T") -> -4.82 | J39: =IFERROR(RTD("cqg.rtd", ,"ContractData",C39, "PerCentNetLastTrade",, "T")/100,"") -> -0.0167204357 | K39: =RTD("cqg.rtd", ,"ContractData", C39, "T_CVol",, "T") -> 581945 | L39: 39 | M39: =IFERROR(RANK($J39,$J$1:J$60)+COUNTIF($J$1:J39,J39)-1,"") -> 53 | N39: S.US.PODD | O39: S.US.SYK
A40: S.MRK | B40: 1 | C40: S.US.BIIB | D40: =RTD("cqg.rtd", ,"ContractData",C40, "LongDescription",, "T") -> Biogen Inc. | H40: =RTD("cqg.rtd", ,"ContractData",C40, "LastTradeToday",, "T") -> 128.69 | I40: =RTD("cqg.rtd", ,"ContractData",C40, "NetLastTradeToday",, "T") -> 0.23 | J40: =IFERROR(RTD("cqg.rtd", ,"ContractData",C40, "PerCentNetLastTrade",, "T")/100,"") -> 0.001790440604 | K40: =RTD("cqg.rtd", ,"ContractData", C40, "T_CVol",, "T") -> 1150731 | L40: 40 | M40: =IFERROR(RANK($J40,$J$1:J$60)+COUNTIF($J$1:J40,J40)-1,"") -> 30 | N40: S.US.BIIB | O40: S.US.MCK
A41: S.MRNA | B41: 1 | C41: S.US.DGX | D41: =RTD("cqg.rtd", ,"ContractData",C41, "LongDescription",, "T") -> Quest Diagnostics Inc | H41: =RTD("cqg.rtd", ,"ContractData",C41, "LastTradeToday",, "T") -> 168.18 | I41: =RTD("cqg.rtd", ,"ContractData",C41, "NetLastTradeToday",, "T") -> 1.15 | J41: =IFERROR(RTD("cqg.rtd", ,"ContractData",C41, "PerCentNetLastTrade",, "T")/100,"") -> 0.00688499072 | K41: =RTD("cqg.rtd", ,"ContractData", C41, "T_CVol",, "T") -> 1358660 | L41: 41 | M41: =IFERROR(RANK($J41,$J$1:J$60)+COUNTIF($J$1:J41,J41)-1,"") -> 21 | N41: S.US.DGX | O41: S.US.CVS
A42: S.MTD | B42: 1 | C42: S.US.ZBH | D42: =RTD("cqg.rtd", ,"ContractData",C42, "LongDescription",, "T") -> Zimmer Biomet Holdings, Inc | H42: =RTD("cqg.rtd", ,"ContractData",C42, "LastTradeToday",, "T") -> 94.9 | I42: =RTD("cqg.rtd", ,"ContractData",C42, "NetLastTradeToday",, "T") -> 0.68 | J42: =IFERROR(RTD("cqg.rtd", ,"ContractData",C42, "PerCentNetLastTrade",, "T")/100,"") -> 0.007217151348 | K42: =RTD("cqg.rtd", ,"ContractData", C42, "T_CVol",, "T") -> 2491754 | L42: 42 | M42: =IFERROR(RANK($J42,$J$1:J$60)+COUNTIF($J$1:J42,J42)-1,"") -> 19 | N42: S.US.ZBH | O42: S.US.GILD
A43: S.PFE | B43: 1 | C43: S.US.WAT | D43: =RTD("cqg.rtd", ,"ContractData",C43, "LongDescription",, "T") -> Waters Corporation | H43: =RTD("cqg.rtd", ,"ContractData",C43, "LastTradeToday",, "T") -> 296.92 | I43: =RTD("cqg.rtd", ,"ContractData",C43, "NetLastTradeToday",, "T") -> 7.36 | J43: =IFERROR(RTD("cqg.rtd", ,"ContractData",C43, "PerCentNetLastTrade",, "T")/100,"") -> 0.0254178754 | K43: =RTD("cqg.rtd", ,"ContractData", C43, "T_CVol",, "T") -> 1033570 | L43: 43 | M43: =IFERROR(RANK($J43,$J$1:J$60)+COUNTIF($J$1:J43,J43)-1,"") -> 4 | N43: S.US.WAT | O43: S.US.ZTS
A44: S.PODD | B44: 0 | C44: S.US.WST | D44: =RTD("cqg.rtd", ,"ContractData",C44, "LongDescription",, "T") -> West Pharmaceuticals Svcs Inc | H44: =RTD("cqg.rtd", ,"ContractData",C44, "LastTradeToday",, "T") -> 221.59 | I44: =RTD("cqg.rtd", ,"ContractData",C44, "NetLastTradeToday",, "T") -> -2.79 | J44: =IFERROR(RTD("cqg.rtd", ,"ContractData",C44, "PerCentNetLastTrade",, "T")/100,"") -> -0.0124342633 | K44: =RTD("cqg.rtd", ,"ContractData", C44, "T_CVol",, "T") -> 532392 | L44: 44 | M44: =IFERROR(RANK($J44,$J$1:J$60)+COUNTIF($J$1:J44,J44)-1,"") -> 48 | N44: S.US.WST | O44: S.US.CAH
A45: S.REGN | B45: 0 | C45: S.US.CNC | D45: =RTD("cqg.rtd", ,"ContractData",C45, "LongDescription",, "T") -> Cenetene Corporation | H45: =RTD("cqg.rtd", ,"ContractData",C45, "LastTradeToday",, "T") -> 29.14 | I45: =RTD("cqg.rtd", ,"ContractData",C45, "NetLastTradeToday",, "T") -> -1.27 | J45: =IFERROR(RTD("cqg.rtd", ,"ContractData",C45, "PerCentNetLastTrade",, "T")/100,"") -> -0.0417625781 | K45: =RTD("cqg.rtd", ,"ContractData", C45, "T_CVol",, "T") -> 19339508 | L45: 45 | M45: =IFERROR(RANK($J45,$J$1:J$60)+COUNTIF($J$1:J45,J45)-1,"") -> 57 | N45: S.US.CNC | O45: S.US.JNJ
A46: S.RMD | B46: 1 | C46: S.US.COO | D46: =RTD("cqg.rtd", ,"ContractData",C46, "LongDescription",, "T") -> Cooper Companies Inc (The) | H46: =RTD("cqg.rtd", ,"ContractData",C46, "LastTradeToday",, "T") -> 73.26 | I46: =RTD("cqg.rtd", ,"ContractData",C46, "NetLastTradeToday",, "T") -> 0.56 | J46: =IFERROR(RTD("cqg.rtd", ,"ContractData",C46, "PerCentNetLastTrade",, "T")/100,"") -> 0.007702888583 | K46: =RTD("cqg.rtd", ,"ContractData", C46, "T_CVol",, "T") -> 2614232 | L46: 46 | M46: =IFERROR(RANK($J46,$J$1:J$60)+COUNTIF($J$1:J46,J46)-1,"") -> 18 | N46: S.US.COO | O46: S.US.MRK
A47: S.RVTY | B47: 0 | C47: S.US.BAX | D47: =RTD("cqg.rtd", ,"ContractData",C47, "LongDescription",, "T") -> Baxter International Inc | H47: =RTD("cqg.rtd", ,"ContractData",C47, "LastTradeToday",, "T") -> 27.89 | I47: =RTD("cqg.rtd", ,"ContractData",C47, "NetLastTradeToday",, "T") -> -0.48 | J47: =IFERROR(RTD("cqg.rtd", ,"ContractData",C47, "PerCentNetLastTrade",, "T")/100,"") -> -0.01691928093 | K47: =RTD("cqg.rtd", ,"ContractData", C47, "T_CVol",, "T") -> 5295268 | L47: 47 | M47: =IFERROR(RANK($J47,$J$1:J$60)+COUNTIF($J$1:J47,J47)-1,"") -> 54 | N47: S.US.BAX | O47: S.US.COR
A48: S.SOLV | B48: 1 | C48: S.US.HOLX | D48: =RTD("cqg.rtd", ,"ContractData",C48, "LongDescription",, "T") -> Hologic Inc | H48: =RTD("cqg.rtd", ,"ContractData",C48, "LastTradeToday",, "T") -> 64.02 | I48: =RTD("cqg.rtd", ,"ContractData",C48, "NetLastTradeToday",, "T") -> 0.16 | J48: =IFERROR(RTD("cqg.rtd", ,"ContractData",C48, "PerCentNetLastTrade",, "T")/100,"") -> 0.002505480739 | K48: =RTD("cqg.rtd", ,"ContractData", C48, "T_CVol",, "T") -> 1505086 | L48: 48 | M48: =IFERROR(RANK($J48,$J$1:J$60)+COUNTIF($J$1:J48,J48)-1,"") -> 29 | N48: S.US.HOLX | O48: S.US.WST
A49: S.STE | B49: 1 | C49: S.US.ALGN | D49: =RTD("cqg.rtd", ,"ContractData",C49, "LongDescription",, "T") -> Align Technology Inc | H49: =RTD("cqg.rtd", ,"ContractData",C49, "LastTradeToday",, "T") -> 192.27 | I49: =RTD("cqg.rtd", ,"ContractData",C49, "NetLastTradeToday",, "T") -> 2.03 | J49: =IFERROR(RTD("cqg.rtd", ,"ContractData",C49, "PerCentNetLastTrade",, "T")/100,"") -> 0.01067073171 | K49: =RTD("cqg.rtd", ,"ContractData", C49, "T_CVol",, "T") -> 672575 | L49: 49 | M49: =IFERROR(RANK($J49,$J$1:J$60)+COUNTIF($J$1:J49,J49)-1,"") -> 14 | N49: S.US.ALGN | O49: S.US.HUM
A50: S.SYK | B50: 0 | C50: S.US.MOH | D50: =RTD("cqg.rtd", ,"ContractData",C50, "LongDescription",, "T") -> Mohlina Heathcare Inc | H50: =RTD("cqg.rtd", ,"ContractData",C50, "LastTradeToday",, "T") -> 204.25 | I50: =RTD("cqg.rtd", ,"ContractData",C50, "NetLastTradeToday",, "T") -> -11.81 | J50: =IFERROR(RTD("cqg.rtd", ,"ContractData",C50, "PerCentNetLastTrade",, "T")/100,"") -> -0.05466074239 | K50: =RTD("cqg.rtd", ,"ContractData", C50, "T_CVol",, "T") -> 1773284 | L50: 50 | M50: =IFERROR(RANK($J50,$J$1:J$60)+COUNTIF($J$1:J50,J50)-1,"") -> 58 | N50: S.US.MOH | O50: S.US.STE
A51: S.TECH | B51: 1 | C51: S.US.RVTY | D51: =RTD("cqg.rtd", ,"ContractData",C51, "LongDescription",, "T") -> Revvity Inc. | H51: =RTD("cqg.rtd", ,"ContractData",C51, "LastTradeToday",, "T") -> 95.58 | I51: =RTD("cqg.rtd", ,"ContractData",C51, "NetLastTradeToday",, "T") -> 0.68 | J51: =IFERROR(RTD("cqg.rtd", ,"ContractData",C51, "PerCentNetLastTrade",, "T")/100,"") -> 0.007165437302 | K51: =RTD("cqg.rtd", ,"ContractData", C51, "T_CVol",, "T") -> 1449630 | L51: 51 | M51: =IFERROR(RANK($J51,$J$1:J$60)+COUNTIF($J$1:J51,J51)-1,"") -> 20 | N51: S.US.RVTY | O51: S.US.VRTX
A52: S.TMO | B52: 0 | C52: S.US.INCY | D52: =RTD("cqg.rtd", ,"ContractData",C52, "LongDescription",, "T") -> Incyte Corporation | H52: =RTD("cqg.rtd", ,"ContractData",C52, "LastTradeToday",, "T") -> 68.94 | I52: =RTD("cqg.rtd", ,"ContractData",C52, "NetLastTradeToday",, "T") -> -0.29 | J52: =IFERROR(RTD("cqg.rtd", ,"ContractData",C52, "PerCentNetLastTrade",, "T")/100,"") -> -0.004188935433 | K52: =RTD("cqg.rtd", ,"ContractData", C52, "T_CVol",, "T") -> 774067 | L52: 52 | M52: =IFERROR(RANK($J52,$J$1:J$60)+COUNTIF($J$1:J52,J52)-1,"") -> 38 | N52: S.US.INCY | O52: S.US.UNH
A53: S.UHS | B53: 1 | C53: S.US.MRNA | D53: =RTD("cqg.rtd", ,"ContractData",C53, "LongDescription",, "T") -> Moderna, Inc. | H53: =RTD("cqg.rtd", ,"ContractData",C53, "LastTradeToday",, "T") -> 32.2 | I53: =RTD("cqg.rtd", ,"ContractData",C53, "NetLastTradeToday",, "T") -> 0.14 | J53: =IFERROR(RTD("cqg.rtd", ,"ContractData",C53, "PerCentNetLastTrade",, "T")/100,"") -> 0.004366812227 | K53: =RTD("cqg.rtd", ,"ContractData", C53, "T_CVol",, "T") -> 6012676 | L53: 53 | M53: =IFERROR(RANK($J53,$J$1:J$60)+COUNTIF($J$1:J53,J53)-1,"") -> 24 | N53: S.US.MRNA | O53: S.US.PODD
A54: S.UNH | B54: 1 | C54: S.US.VTRS | D54: =RTD("cqg.rtd", ,"ContractData",C54, "LongDescription",, "T") -> Viatris Inc. | H54: =RTD("cqg.rtd", ,"ContractData",C54, "LastTradeToday",, "T") -> 9.27 | I54: =RTD("cqg.rtd", ,"ContractData",C54, "NetLastTradeToday",, "T") -> 0.19 | J54: =IFERROR(RTD("cqg.rtd", ,"ContractData",C54, "PerCentNetLastTrade",, "T")/100,"") -> 0.02092511013 | K54: =RTD("cqg.rtd", ,"ContractData", C54, "T_CVol",, "T") -> 10323711 | L54: 54 | M54: =IFERROR(RANK($J54,$J$1:J$60)+COUNTIF($J$1:J54,J54)-1,"") -> 6 | N54: S.US.VTRS | O54: S.US.BAX
A55: S.VRTX | B55: 1 | C55: S.US.UHS | D55: =RTD("cqg.rtd", ,"ContractData",C55, "LongDescription",, "T") -> Universal Health Svcs ClsB | H55: =RTD("cqg.rtd", ,"ContractData",C55, "LastTradeToday",, "T") -> 170.82 | I55: =RTD("cqg.rtd", ,"ContractData",C55, "NetLastTradeToday",, "T") -> 0.54 | J55: =IFERROR(RTD("cqg.rtd", ,"ContractData",C55, "PerCentNetLastTrade",, "T")/100,"") -> 0.003171247357 | K55: =RTD("cqg.rtd", ,"ContractData", C55, "T_CVol",, "T") -> 786912 | L55: 55 | M55: =IFERROR(RANK($J55,$J$1:J$60)+COUNTIF($J$1:J55,J55)-1,"") -> 27 | N55: S.US.UHS | O55: S.US.CI
A56: S.VTRS | B56: 1 | C56: S.US.SOLV | D56: =RTD("cqg.rtd", ,"ContractData",C56, "LongDescription",, "T") -> Solventum Corporation | H56: =RTD("cqg.rtd", ,"ContractData",C56, "LastTradeToday",, "T") -> 73.86 | I56: =RTD("cqg.rtd", ,"ContractData",C56, "NetLastTradeToday",, "T") -> 0.83 | J56: =IFERROR(RTD("cqg.rtd", ,"ContractData",C56, "PerCentNetLastTrade",, "T")/100,"") -> 0.01136519239 | K56: =RTD("cqg.rtd", ,"ContractData", C56, "T_CVol",, "T") -> 424388 | L56: 56 | M56: =IFERROR(RANK($J56,$J$1:J$60)+COUNTIF($J$1:J56,J56)-1,"") -> 12 | N56: S.US.SOLV | O56: S.US.LLY
A57: S.WAT | B57: 1 | C57: S.US.HSIC | D57: =RTD("cqg.rtd", ,"ContractData",C57, "LongDescription",, "T") -> Henry Schein Inc | H57: =RTD("cqg.rtd", ,"ContractData",C57, "LastTradeToday",, "T") -> 69.5 | I57: =RTD("cqg.rtd", ,"ContractData",C57, "NetLastTradeToday",, "T") -> 0.18 | J57: =IFERROR(RTD("cqg.rtd", ,"ContractData",C57, "PerCentNetLastTrade",, "T")/100,"") -> 0.002596653203 | K57: =RTD("cqg.rtd", ,"ContractData", C57, "T_CVol",, "T") -> 1350479 | L57: 57 | M57: =IFERROR(RANK($J57,$J$1:J$60)+COUNTIF($J$1:J57,J57)-1,"") -> 28 | N57: S.US.HSIC | O57: S.US.CNC
A58: S.WST | B58: 1 | C58: S.US.TECH | D58: =RTD("cqg.rtd", ,"ContractData",C58, "LongDescription",, "T") -> Bio-Techne Corp | H58: =RTD("cqg.rtd", ,"ContractData",C58, "LastTradeToday",, "T") -> 53.29 | I58: =RTD("cqg.rtd", ,"ContractData",C58, "NetLastTradeToday",, "T") -> 1.5 | J58: =IFERROR(RTD("cqg.rtd", ,"ContractData",C58, "PerCentNetLastTrade",, "T")/100,"") -> 0.02896312029 | K58: =RTD("cqg.rtd", ,"ContractData", C58, "T_CVol",, "T") -> 1275208 | L58: 58 | M58: =IFERROR(RANK($J58,$J$1:J$60)+COUNTIF($J$1:J58,J58)-1,"") -> 2 | N58: S.US.TECH | O58: S.US.MOH
A59: S.ZBH | B59: 1 | C59: S.US.CRL | D59: =RTD("cqg.rtd", ,"ContractData",C59, "LongDescription",, "T") -> Charles River Labs Hldgs Inc | H59: =RTD("cqg.rtd", ,"ContractData",C59, "LastTradeToday",, "T") -> 156.7 | I59: =RTD("cqg.rtd", ,"ContractData",C59, "NetLastTradeToday",, "T") -> 1.76 | J59: =IFERROR(RTD("cqg.rtd", ,"ContractData",C59, "PerCentNetLastTrade",, "T")/100,"") -> 0.01135923583 | K59: =RTD("cqg.rtd", ,"ContractData", C59, "T_CVol",, "T") -> 898149 | L59: 59 | M59: =IFERROR(RANK($J59,$J$1:J$60)+COUNTIF($J$1:J59,J59)-1,"") -> 13 | N59: S.US.CRL | O59: S.US.ABT
A60: S.ZTS | B60: 1 | C60: S.US.DVA | D60: =RTD("cqg.rtd", ,"ContractData",C60, "LongDescription",, "T") -> DaVita Inc. | H60: =RTD("cqg.rtd", ,"ContractData",C60, "LastTradeToday",, "T") -> 143.38 | I60: =RTD("cqg.rtd", ,"ContractData",C60, "NetLastTradeToday",, "T") -> 3.16 | J60: =IFERROR(RTD("cqg.rtd", ,"ContractData",C60, "PerCentNetLastTrade",, "T")/100,"") -> 0.02253601483 | K60: =RTD("cqg.rtd", ,"ContractData", C60, "T_CVol",, "T") -> 578701 | L60: 60 | M60: =IFERROR(RANK($J60,$J$1:J$60)+COUNTIF($J$1:J60,J60)-1,"") -> 5 | N60: S.US.DVA | O60: S.US.ELV
M61: =IFERROR(RANK($J61,$J$1:J$98)+COUNTIF($J$1:J61,J61)-1,"") -> 
M62: =IFERROR(RANK($J62,$J$1:J$98)+COUNTIF($J$1:J62,J62)-1,"") -> 
M63: =IFERROR(RANK($J63,$J$1:J$98)+COUNTIF($J$1:J63,J63)-1,"") -> 
M64: =IFERROR(RANK($J64,$J$1:J$98)+COUNTIF($J$1:J64,J64)-1,"") -> 
M65: =IFERROR(RANK($J65,$J$1:J$98)+COUNTIF($J$1:J65,J65)-1,"") -> 
M66: =IFERROR(RANK($J66,$J$1:J$98)+COUNTIF($J$1:J66,J66)-1,"") -> 
M67: =IFERROR(RANK($J67,$J$1:J$98)+COUNTIF($J$1:J67,J67)-1,"") -> 
M68: =IFERROR(RANK($J68,$J$1:J$98)+COUNTIF($J$1:J68,J68)-1,"") -> 
M69: =IFERROR(RANK($J69,$J$1:J$98)+COUNTIF($J$1:J69,J69)-1,"") -> 
M70: =IFERROR(RANK($J70,$J$1:J$98)+COUNTIF($J$1:J70,J70)-1,"") -> 
M71: =IFERROR(RANK($J71,$J$1:J$98)+COUNTIF($J$1:J71,J71)-1,"") -> 
M72: =IFERROR(RANK($J72,$J$1:J$98)+COUNTIF($J$1:J72,J72)-1,"") -> 
M73: =IFERROR(RANK($J73,$J$1:J$98)+COUNTIF($J$1:J73,J73)-1,"") -> 
M74: =IFERROR(RANK($J74,$J$1:J$98)+COUNTIF($J$1:J74,J74)-1,"") -> 
M75: =IFERROR(RANK($J75,$J$1:J$98)+COUNTIF($J$1:J75,J75)-1,"") -> 
M76: =IFERROR(RANK($J76,$J$1:J$98)+COUNTIF($J$1:J76,J76)-1,"") -> 
M77: =IFERROR(RANK($J77,$J$1:J$98)+COUNTIF($J$1:J77,J77)-1,"") -> 
M78: =IFERROR(RANK($J78,$J$1:J$98)+COUNTIF($J$1:J78,J78)-1,"") -> 
M79: =IFERROR(RANK($J79,$J$1:J$98)+COUNTIF($J$1:J79,J79)-1,"") -> 
M80: =IFERROR(RANK($J80,$J$1:J$98)+COUNTIF($J$1:J80,J80)-1,"") -> 
M81: =IFERROR(RANK($J81,$J$1:J$98)+COUNTIF($J$1:J81,J81)-1,"") -> 
M82: =IFERROR(RANK($J82,$J$1:J$98)+COUNTIF($J$1:J82,J82)-1,"") -> 
M83: =IFERROR(RANK($J83,$J$1:J$98)+COUNTIF($J$1:J83,J83)-1,"") -> 
M84: =IFERROR(RANK($J84,$J$1:J$98)+COUNTIF($J$1:J84,J84)-1,"") -> 
M85: =IFERROR(RANK($J85,$J$1:J$98)+COUNTIF($J$1:J85,J85)-1,"") -> 
M86: =IFERROR(RANK($J86,$J$1:J$98)+COUNTIF($J$1:J86,J86)-1,"") -> 
M87: =IFERROR(RANK($J87,$J$1:J$98)+COUNTIF($J$1:J87,J87)-1,"") -> 
M88: =IFERROR(RANK($J88,$J$1:J$98)+COUNTIF($J$1:J88,J88)-1,"") -> 
M89: =IFERROR(RANK($J89,$J$1:J$98)+COUNTIF($J$1:J89,J89)-1,"") -> 
M90: =IFERROR(RANK($J90,$J$1:J$98)+COUNTIF($J$1:J90,J90)-1,"") -> 
M91: =IFERROR(RANK($J91,$J$1:J$98)+COUNTIF($J$1:J91,J91)-1,"") -> 
M92: =IFERROR(RANK($J92,$J$1:J$98)+COUNTIF($J$1:J92,J92)-1,"") -> 
M93: =IFERROR(RANK($J93,$J$1:J$98)+COUNTIF($J$1:J93,J93)-1,"") -> 
M94: =IFERROR(RANK($J94,$J$1:J$98)+COUNTIF($J$1:J94,J94)-1,"") -> 
M95: =IFERROR(RANK($J95,$J$1:J$98)+COUNTIF($J$1:J95,J95)-1,"") -> 
M96: =IFERROR(RANK($J96,$J$1:J$98)+COUNTIF($J$1:J96,J96)-1,"") -> 
M97: =IFERROR(RANK($J97,$J$1:J$98)+COUNTIF($J$1:J97,J97)-1,"") -> 
M98: =IFERROR(RANK($J98,$J$1:J$98)+COUNTIF($J$1:J98,J98)-1,"") -> 
B99: =SUM(B1:B60)/60 -> 0.5333333333
